Workbook

Sheet Feuil1
A1: NOM | B1: BASSINET Grégoire | G1: NOM | H1: FORMATION | I1: STE | J1: ADRESSE | K1: CP VILLE | L1: TEL | M1: MAIL
A2: FORMATION | F2: 1 | G2: =INDIRECT("b"&COLUMN(A:A)+(7*ROW(1:1)-7)) -> BASSINET Grégoire | H2: =INDIRECT("b"&COLUMN(B:B)+(7*ROW(1:1)-7)) -> 0 | I2: BASSINET TUROUIN PAYSAGE | J2: 56, rue du faubourg Poissonnière | K2: 75010 Paris | L2: Tél.:0142 2612 46 | M2: oontact@btpaysage.oom
A3: STE | B3: BASSINET TUROUIN PAYSAGE | F3: =F2+1 -> 2 | G3: =INDIRECT("b"&COLUMN(A:A)+(7*ROW(2:2)-7)) -> BOUR Sophie | H3: =INDIRECT("b"&COLUMN(B:B)+(7*ROW(2:2)-7)) -> ENSP | I3: =INDIRECT("b"&COLUMN(C:C)+(7*ROW(2:2)-7)) -> D'AUTREPART | J3: =INDIRECT("b"&COLUMN(D:D)+(7*ROW(2:2)-7)) -> 46, rue Andre Thome | K3: =INDIRECT("b"&COLUMN(E:E)+(7*ROW(2:2)-7)) -> 78120 Sonchamp | L3: =INDIRECT("b"&COLUMN(F:F)+(7*ROW(2:2)-7)) -> Tél. :0612 9188 49 | M3: =INDIRECT("b"&COLUMN(G:G)+(7*ROW(2:2)-7)) -> sophie@dautrepart.fr
A4: ADRESSE | B4: 56, rue du faubourg Poissonnière | F4: 2 | G4: CHARLES - LE FRANC Daphné | H4: ENSP | I4: DAPHNÉ CHARLES - PAYSAGES SAS | J4: 15, rue Rougemont | K4: 75009 Paris | L4: Tel. : 09 52 510019 | M4: daphne.charIes@Wanadoo.fr
A5: CP VILLE | B5: 75010 Paris | F5: =F4+1 -> 3 | G5: BAVA Henri | H5: ENSP | I5: AGENCE TER | J5: 18-20, rue du Faubourg du Temple | K5: 75011 Paris | L5: Tel.:014314 34 00 | M5: contact@agenceter.com
A6: TEL | B6: Tél.:0142 2612 46 | F6: 3 | G6: BIANCHI Marta | H6: ENSP | I6: BIANCHIMAJER - SERVICES D' ARCHITECTURE ET DE PAYSAGE | J6: 37, rue de la Grange aux Belles | K6: 75010 Paris | L6: Tél. : 01 42 45 00 76 | M6: oontact@bianohimajer.oom
A7: MAIL | B7: oontact@btpaysage.oom | F7: =F6+1 -> 4 | G7: BLUME Marc | H7: FE (Allemagne) | I7: ATELIER EEM | J7: 33, rue Ramponeau | K7: 75020 Paris | L7: Tel. : 01 75 51 33 24 | M7: m@ateIier-eem.org
A8: NOM | B8: BOUR Sophie | F8: 4 | G8: BOUCHER Thomas | H8: ENSP | I8: PRAXYS | J8: 155, rue de Belleville | K8: 75019 Paris | L8: Tél.:0142 77 2613 | M8: administratif@praxys-paysage.fr
A9: FORMATION | B9: ENSP | F9: =F8+1 -> 5 | G9: BRUNET Catherine | H9: ENSP | I9: CATHERINE BRUNET PAYSAGISTE | J9: 10 ter, rue Bisson | K9: 75020 Paris | L9: Tél.:O143 571615 | M9: o.brunet.paysagiste@free.fr
A10: STE | B10: D'AUTREPART | F10: 5 | G10: BRUTER Jonathan | H10: ENSAP Bx | I10: LANOD | J10: 8, rue Joseph Dijon | K10: 75018 Paris | L10: Tél. : 09 83 85 02 91 | M10: contact@Ianod.net
A11: ADRESSE | B11: 46, rue Andre Thome | F11: =F10+1 -> 6 | G11: CATOIRE Marion | H11: ESAJ | I11: L'ARBRE À CAM AGENCE | J11: 49, avenue Maréchal Lattre de Tassigny | K11: 94600 Choisy le Roi | L11: Tél. : 09 51 33 60 59 | M11: Iarbreacam@gmaiI.com
A12: CP VILLE | B12: 78120 Sonchamp | F12: 6 | G12: CHAMBLAS Lydie | H12: Habilitée FFP | I12: M. A. P | J12: 25, rue Hebert | K12: 92140 Clamart | L12: Tél. : 06 09 81 30 37 | M12: lydie.chamblas@map-arohitectescom
A13: TEL | B13: Tél. :0612 9188 49 | F13: =F12+1 -> 7 | G13: CHARRIER Gwenaelle | H13: ENSP | I13: 1, cour des Oeillets | J13: 77600 Bussy Saint Georges | K13: Tel. : 06 4312 40 04 | L13: 0 | M13: 0
A14: MAIL | B14: sophie@dautrepart.fr | F14: 7 | G14: COTTET Vincent | H14: ENSP | I14: RICHEZ Assoc|És PAYSAGE | J14: 2, rue de la Roquette | K14: 75011 Paris | L14: Tel. : 01 43 38 22 55 | M14: maiI@riohezassooies.com
A15: NOM | B15: CHARLES - LE FRANC Daphné | F15: =F14+1 -> 8 | G15: CHASTEL-ASSE Sabine | H15: ENSP | I15: ATELIER CONCEPTION PAYSAGE | J15: 30, rue des Salles | K15: 92400 Courbevoie | L15: Tel. : 01 47 68 83 53 | M15: atelierconceptionpaysage@orange.fr
A16: FORMATION | B16: ENSP | F16: 8 | G16: COUSIN Romuald | H16: /NH (ENIHP) | I16: ENDROITS EN VERT | J16: 23, quai Alfred Sisley | K16: 92390 Villeneuve la Garenne | L16: Tél. : 01 46 85 87 81 | M16: r.cousin@endroitsenvert.fr
A17: STE | B17: DAPHNÉ CHARLES - PAYSAGES SAS | F17: =F16+1 -> 9 | G17: CLARAMUNT Marc | H17: ENSP | I17: ATELIER PHUSIS | J17: 26, rue des Trois Bornes | K17: 75011 Paris | L17: Tél. : 01 49 23 01 44 | M17: ateIierphusis@wanadoo.fr
A18: ADRESSE | B18: 15, rue Rougemont | F18: 9 | G18: COSTELLI Davide | H18: ENSP | I18: DAVIDECOSTELLI | J18: 40, rue d'HautpouI | K18: 75019 Paris | L18: Tel. :0610 92 97 31 | M18: dcosteIIi@gmaiI.com
A19: CP VILLE | B19: 75009 Paris | F19: =F18+1 -> 10 | G19: COUSSERAN Alain | H19: /NH (ENIHP) | I19: GROUPE SIGNES | J19: 162, rue du faubourg Saint Denis | K19: 75010 Paris | L19: Tel. : 01 40 22 95 95 | M19: groupe@signes-paysages.fr
A20: TEL | B20: Tel. : 09 52 510019 | F20: 10 | G20: DAMEE olivier | H20: ENSP | I20: DAMEE VALLET & ASSOCIÉS SARL | J20: 12 et 12 bis, rue Melingue | K20: 75019 Paris | L20: Tel. : 01 42 06 38 60 | M20: d.v.a@dvapaysages.com
A21: MAIL | B21: daphne.charIes@Wanadoo.fr | F21: =F20+1 -> 11 | G21: DARD Charles | H21: ENSP | I21: CHARLES DARD PAYSAGISTE | J21: 31, rue Henri Chevreau | K21: 75020 Paris | L21: Tel.:0146361115 | M21: charIes.dard@orange.fr
A22: NOM | B22: BAVA Henri | F22: 11 | G22: ALLEAUME Céline | H22: GEMBLOUX | I22: ARCHITECTE PAYSAGISTE | J22: 0 | K22: 78470 Saint Remy les Chevreuse | L22: 0 | M22: celinealleaume@outlook.fr
A23: FORMATION | B23: ENSP | F23: =F22+1 -> 12 | G23: ARNOUX Maxime | H23: ENSP | I23: CONCEPTEUR DPLG | J23: 5, rue Armand Silvestre Appt 4 | K23: 92400 Courbevoie | L23: 0 | M23: 0
A24: STE | B24: AGENCE TER | F24: 12 | G24: AUDOUY Michel | H24: ENSP | I24: MICHEL AUDOUY ARCHITECTE-PAYSAGISTE | J24: 14, rue Deparcieux | K24: 75014 Paris | L24: Tel. : 01 43 21 61 86 | M24: micheI.audouy@wanadoo.fr
A25: ADRESSE | B25: 18-20, rue du Faubourg du Temple | F25: =F24+1 -> 13 | G25: BARNOUD Benoît | H25: ENSP | I25: ALTITUDE 35 | J25: 28, rue du Canal | K25: 93200 Saint Denis | L25: Tél. : 06 83 37 4612 | M25: benoit.barnoud@aItitude35.com
A26: CP VILLE | B26: 75011 Paris | F26: 13 | G26: DE DREUZY Henri | H26: ENSP | I26: AGENCE BABYLONE | J26: 56, rue de Paradis | K26: 75010 Paris | L26: Tel. : 01 49 23 51 01 | M26: contact@agencebabyIone.com
A27: TEL | B27: Tel.:014314 34 00 | F27: =F26+1 -> 14 | G27: DELBOY Sylvain | H27: ENSP | I27: SENSOMOTO Paysagistes | J27: 28, rue Danton | K27: 93310 Le Pre Saint Gervais | L27: Tel. : 09 53 34 08 00 | M27: ateIier@sensomoto.org
A28: MAIL | B28: contact@agenceter.com | F28: 14 | G28: DEMACHY Alexandre | H28: ENSP | I28: AD PAYSAGISTE | J28: 20, avenue Paul Appell | K28: 75014 Paris | L28: Tel. : 06 61 90 43 30 | M28: adpaysagiste@free.fr
A29: NOM | B29: BIANCHI Marta | F29: =F28+1 -> 15 | G29: DESHAYES Yves | H29: ENSP | I29: 0 | J29: 20, rue de Neuilly | K29: 92110 Clichy | L29: Tel. : 01 47 31 21 57 | M29: 0
A30: FORMATION | B30: ENSP | F30: 15 | G30: l=oLLÉA Bertrand | H30: ENSP | I30: AGENCE BERTRAND FOLLÉA -CLAIRE GAUTIER | J30: 100, avenue Henri Ginoux | K30: 92120 Montrouge | L30: Tel. : 01 47 35 71 33 | M30: agence@foIlea-gautier.com
A31: STE | B31: BIANCHIMAJER - SERVICES D' ARCHITECTURE ET DE PAYSAGE | F31: =F30+1 -> 16 | G31: BASSINET Grégoire | H31: 0 | I31: BASSINET TUROUIN PAYSAGE | J31: 56, rue du faubourg Poissonnière | K31: 75010 Paris | L31: Tél.:0142 2612 46 | M31: oontact@btpaysage.oom
A32: ADRESSE | B32: 37, rue de la Grange aux Belles | F32: 16 | G32: BOUR Sophie | H32: ENSP | I32: D'AUTREPART | J32: 46, rue Andre Thome | K32: 78120 Sonchamp | L32: Tél. :0612 9188 49 | M32: sophie@dautrepart.fr
A33: CP VILLE | B33: 75010 Paris | F33: =F32+1 -> 17 | G33: CHARLES - LE FRANC Daphné | H33: ENSP | I33: DAPHNÉ CHARLES - PAYSAGES SAS | J33: 15, rue Rougemont | K33: 75009 Paris | L33: Tel. : 09 52 510019 | M33: daphne.charIes@Wanadoo.fr
A34: TEL | B34: Tél. : 01 42 45 00 76 | F34: 17 | G34: BAVA Henri | H34: ENSP | I34: AGENCE TER | J34: 18-20, rue du Faubourg du Temple | K34: 75011 Paris | L34: Tel.:014314 34 00 | M34: contact@agenceter.com
A35: MAIL | B35: oontact@bianohimajer.oom | F35: =F34+1 -> 18 | G35: BIANCHI Marta | H35: ENSP | I35: BIANCHIMAJER - SERVICES D' ARCHITECTURE ET DE PAYSAGE | J35: 37, rue de la Grange aux Belles | K35: 75010 Paris | L35: Tél. : 01 42 45 00 76 | M35: oontact@bianohimajer.oom
A36: NOM | B36: BLUME Marc | F36: 18 | G36: BLUME Marc | H36: FE (Allemagne) | I36: ATELIER EEM | J36: 33, rue Ramponeau | K36: 75020 Paris | L36: Tel. : 01 75 51 33 24 | M36: m@ateIier-eem.org
A37: FORMATION | B37: FE (Allemagne) | F37: =F36+1 -> 19 | G37: BOUCHER Thomas | H37: ENSP | I37: PRAXYS | J37: 155, rue de Belleville | K37: 75019 Paris | L37: Tél.:0142 77 2613 | M37: administratif@praxys-paysage.fr
A38: STE | B38: ATELIER EEM | F38: 19 | G38: BRUNET Catherine | H38: ENSP | I38: CATHERINE BRUNET PAYSAGISTE | J38: 10 ter, rue Bisson | K38: 75020 Paris | L38: Tél.:O143 571615 | M38: o.brunet.paysagiste@free.fr
A39: ADRESSE | B39: 33, rue Ramponeau | F39: =F38+1 -> 20 | G39: BRUTER Jonathan | H39: ENSAP Bx | I39: LANOD | J39: 8, rue Joseph Dijon | K39: 75018 Paris | L39: Tél. : 09 83 85 02 91 | M39: contact@Ianod.net
A40: CP VILLE | B40: 75020 Paris | F40: 21 | G40: CATOIRE Marion | H40: ESAJ | I40: L'ARBRE À CAM AGENCE | J40: 49, avenue Maréchal Lattre de Tassigny | K40: 94600 Choisy le Roi | L40: Tél. : 09 51 33 60 59 | M40: Iarbreacam@gmaiI.com
A41: TEL | B41: Tel. : 01 75 51 33 24 | F41: 22 | G41: CHAMBLAS Lydie | H41: Habilitée FFP | I41: M. A. P | J41: 25, rue Hebert | K41: 92140 Clamart | L41: Tél. : 06 09 81 30 37 | M41: lydie.chamblas@map-arohitectescom
A42: MAIL | B42: m@ateIier-eem.org | F42: 22 | G42: CHARRIER Gwenaelle | H42: ENSP | I42: 1, cour des Oeillets | J42: 77600 Bussy Saint Georges | K42: Tel. : 06 4312 40 04 | L42: 0 | M42: 0
A43: NOM | B43: BOUCHER Thomas | F43: 23 | G43: COTTET Vincent | H43: ENSP | I43: RICHEZ Assoc|És PAYSAGE | J43: 2, rue de la Roquette | K43: 75011 Paris | L43: Tel. : 01 43 38 22 55 | M43: maiI@riohezassooies.com
A44: FORMATION | B44: ENSP | F44: 23 | G44: CHASTEL-ASSE Sabine | H44: ENSP | I44: ATELIER CONCEPTION PAYSAGE | J44: 30, rue des Salles | K44: 92400 Courbevoie | L44: Tel. : 01 47 68 83 53 | M44: atelierconceptionpaysage@orange.fr
A45: STE | B45: PRAXYS | F45: 24 | G45: COUSIN Romuald | H45: /NH (ENIHP) | I45: ENDROITS EN VERT | J45: 23, quai Alfred Sisley | K45: 92390 Villeneuve la Garenne | L45: Tél. : 01 46 85 87 81 | M45: r.cousin@endroitsenvert.fr
A46: ADRESSE | B46: 155, rue de Belleville | F46: 24 | G46: CLARAMUNT Marc | H46: ENSP | I46: ATELIER PHUSIS | J46: 26, rue des Trois Bornes | K46: 75011 Paris | L46: Tél. : 01 49 23 01 44 | M46: ateIierphusis@wanadoo.fr
A47: CP VILLE | B47: 75019 Paris | F47: 25 | G47: COSTELLI Davide | H47: ENSP | I47: DAVIDECOSTELLI | J47: 40, rue d'HautpouI | K47: 75019 Paris | L47: Tel. :0610 92 97 31 | M47: dcosteIIi@gmaiI.com
A48: TEL | B48: Tél.:0142 77 2613 | F48: 25 | G48: COUSSERAN Alain | H48: /NH (ENIHP) | I48: GROUPE SIGNES | J48: 162, rue du faubourg Saint Denis | K48: 75010 Paris | L48: Tel. : 01 40 22 95 95 | M48: groupe@signes-paysages.fr
A49: MAIL | B49: administratif@praxys-paysage.fr | F49: 26 | G49: DAMEE olivier | H49: ENSP | I49: DAMEE VALLET & ASSOCIÉS SARL | J49: 12 et 12 bis, rue Melingue | K49: 75019 Paris | L49: Tel. : 01 42 06 38 60 | M49: d.v.a@dvapaysages.com
A50: NOM | B50: BRUNET Catherine | F50: 26 | G50: DARD Charles | H50: ENSP | I50: CHARLES DARD PAYSAGISTE | J50: 31, rue Henri Chevreau | K50: 75020 Paris | L50: Tel.:0146361115 | M50: charIes.dard@orange.fr
A51: FORMATION | B51: ENSP | F51: 27 | G51: ALLEAUME Céline | H51: GEMBLOUX | I51: ARCHITECTE PAYSAGISTE | J51: 0 | K51: 78470 Saint Remy les Chevreuse | L51: 0 | M51: celinealleaume@outlook.fr
A52: STE | B52: CATHERINE BRUNET PAYSAGISTE | F52: 27 | G52: ARNOUX Maxime | H52: ENSP | I52: CONCEPTEUR DPLG | J52: 5, rue Armand Silvestre Appt 4 | K52: 92400 Courbevoie | L52: 0 | M52: 0
A53: ADRESSE | B53: 10 ter, rue Bisson | F53: 28 | G53: AUDOUY Michel | H53: ENSP | I53: MICHEL AUDOUY ARCHITECTE-PAYSAGISTE | J53: 14, rue Deparcieux | K53: 75014 Paris | L53: Tel. : 01 43 21 61 86 | M53: micheI.audouy@wanadoo.fr
A54: CP VILLE | B54: 75020 Paris | F54: 28 | G54: BARNOUD Benoît | H54: ENSP | I54: ALTITUDE 35 | J54: 28, rue du Canal | K54: 93200 Saint Denis | L54: Tél. : 06 83 37 4612 | M54: benoit.barnoud@aItitude35.com
A55: TEL | B55: Tél.:O143 571615 | F55: 29 | G55: DE DREUZY Henri | H55: ENSP | I55: AGENCE BABYLONE | J55: 56, rue de Paradis | K55: 75010 Paris | L55: Tel. : 01 49 23 51 01 | M55: contact@agencebabyIone.com
A56: MAIL | B56: o.brunet.paysagiste@free.fr | F56: 29 | G56: DELBOY Sylvain | H56: ENSP | I56: SENSOMOTO Paysagistes | J56: 28, rue Danton | K56: 93310 Le Pre Saint Gervais | L56: Tel. : 09 53 34 08 00 | M56: ateIier@sensomoto.org
A57: NOM | B57: BRUTER Jonathan | F57: 30 | G57: DEMACHY Alexandre | H57: ENSP | I57: AD PAYSAGISTE | J57: 20, avenue Paul Appell | K57: 75014 Paris | L57: Tel. : 06 61 90 43 30 | M57: adpaysagiste@free.fr
A58: FORMATION | B58: ENSAP Bx | F58: 30 | G58: DESHAYES Yves | H58: ENSP | I58: 0 | J58: 20, rue de Neuilly | K58: 92110 Clichy | L58: Tel. : 01 47 31 21 57 | M58: 0
A59: STE | B59: LANOD | F59: 31 | G59: l=oLLÉA Bertrand | H59: ENSP | I59: AGENCE BERTRAND FOLLÉA -CLAIRE GAUTIER | J59: 100, avenue Henri Ginoux | K59: 92120 Montrouge | L59: Tel. : 01 47 35 71 33 | M59: agence@foIlea-gautier.com
A60: ADRESSE | B60: 8, rue Joseph Dijon | F60: 31 | G60: BASSINET Grégoire | H60: 0 | I60: BASSINET TUROUIN PAYSAGE | J60: 56, rue du faubourg Poissonnière | K60: 75010 Paris | L60: Tél.:0142 2612 46 | M60: oontact@btpaysage.oom
A61: CP VILLE | B61: 75018 Paris | F61: 32 | G61: BOUR Sophie | H61: ENSP | I61: D'AUTREPART | J61: 46, rue Andre Thome | K61: 78120 Sonchamp | L61: Tél. :0612 9188 49 | M61: sophie@dautrepart.fr
A62: TEL | B62: Tél. : 09 83 85 02 91 | F62: 32 | G62: CHARLES - LE FRANC Daphné | H62: ENSP | I62: DAPHNÉ CHARLES - PAYSAGES SAS | J62: 15, rue Rougemont | K62: 75009 Paris | L62: Tel. : 09 52 510019 | M62: daphne.charIes@Wanadoo.fr
A63: MAIL | B63: contact@Ianod.net | F63: 33 | G63: BAVA Henri | H63: ENSP | I63: AGENCE TER | J63: 18-20, rue du Faubourg du Temple | K63: 75011 Paris | L63: Tel.:014314 34 00 | M63: contact@agenceter.com
A64: NOM | B64: CATOIRE Marion | F64: 33 | G64: BIANCHI Marta | H64: ENSP | I64: BIANCHIMAJER - SERVICES D' ARCHITECTURE ET DE PAYSAGE | J64: 37, rue de la Grange aux Belles | K64: 75010 Paris | L64: Tél. : 01 42 45 00 76 | M64: oontact@bianohimajer.oom
A65: FORMATION | B65: ESAJ | F65: 34 | G65: BLUME Marc | H65: FE (Allemagne) | I65: ATELIER EEM | J65: 33, rue Ramponeau | K65: 75020 Paris | L65: Tel. : 01 75 51 33 24 | M65: m@ateIier-eem.org
A66: STE | B66: L'ARBRE À CAM AGENCE | F66: 34 | G66: BOUCHER Thomas | H66: ENSP | I66: PRAXYS | J66: 155, rue de Belleville | K66: 75019 Paris | L66: Tél.:0142 77 2613 | M66: administratif@praxys-paysage.fr
A67: ADRESSE | B67: 49, avenue Maréchal Lattre de Tassigny | F67: 35 | G67: =INDIRECT("b"&COLUMN(A:A)+(7*ROW(66:66)-7)) -> BRUNET Catherine | H67: =INDIRECT("b"&COLUMN(B:B)+(7*ROW(66:66)-7)) -> ENSP | I67: =INDIRECT("b"&COLUMN(C:C)+(7*ROW(66:66)-7)) -> CATHERINE BRUNET PAYSAGISTE | J67: =INDIRECT("b"&COLUMN(D:D)+(7*ROW(66:66)-7)) -> 10 ter, rue Bisson | K67: =INDIRECT("b"&COLUMN(E:E)+(7*ROW(66:66)-7)) -> 75020 Paris | L67: =INDIRECT("b"&COLUMN(F:F)+(7*ROW(66:66)-7)) -> Tél.:O143 571615 | M67: =INDIRECT("b"&COLUMN(G:G)+(7*ROW(66:66)-7)) -> o.brunet.paysagiste@free.fr
A68: CP VILLE | B68: 94600 Choisy le Roi | F68: 35 | G68: BRUTER Jonathan | H68: ENSAP Bx | I68: LANOD | J68: 8, rue Joseph Dijon | K68: 75018 Paris | L68: Tél. : 09 83 85 02 91 | M68: contact@Ianod.net
A69: TEL | B69: Tél. : 09 51 33 60 59 | F69: 36 | G69: CATOIRE Marion | H69: ESAJ | I69: L'ARBRE À CAM AGENCE | J69: 49, avenue Maréchal Lattre de Tassigny | K69: 94600 Choisy le Roi | L69: Tél. : 09 51 33 60 59 | M69: Iarbreacam@gmaiI.com
A70: MAIL | B70: Iarbreacam@gmaiI.com | F70: 36 | G70: CHAMBLAS Lydie | H70: Habilitée FFP | I70: M. A. P | J70: 25, rue Hebert | K70: 92140 Clamart | L70: Tél. : 06 09 81 30 37 | M70: lydie.chamblas@map-arohitectescom
A71: NOM | B71: CHAMBLAS Lydie | F71: 37 | G71: CHARRIER Gwenaelle | H71: ENSP | I71: 1, cour des Oeillets | J71: 77600 Bussy Saint Georges | K71: Tel. : 06 4312 40 04 | L71: 0 | M71: 0
A72: FORMATION | B72: Habilitée FFP | F72: 37 | G72: COTTET Vincent | H72: ENSP | I72: RICHEZ Assoc|És PAYSAGE | J72: 2, rue de la Roquette | K72: 75011 Paris | L72: Tel. : 01 43 38 22 55 | M72: maiI@riohezassooies.com
A73: STE | B73: M. A. P | F73: 38 | G73: CHASTEL-ASSE Sabine | H73: ENSP | I73: ATELIER CONCEPTION PAYSAGE | J73: 30, rue des Salles | K73: 92400 Courbevoie | L73: Tel. : 01 47 68 83 53 | M73: atelierconceptionpaysage@orange.fr
A74: ADRESSE | B74: 25, rue Hebert | F74: 38 | G74: COUSIN Romuald | H74: /NH (ENIHP) | I74: ENDROITS EN VERT | J74: 23, quai Alfred Sisley | K74: 92390 Villeneuve la Garenne | L74: Tél. : 01 46 85 87 81 | M74: r.cousin@endroitsenvert.fr
A75: CP VILLE | B75: 92140 Clamart | F75: 39 | G75: CLARAMUNT Marc | H75: ENSP | I75: ATELIER PHUSIS | J75: 26, rue des Trois Bornes | K75: 75011 Paris | L75: Tél. : 01 49 23 01 44 | M75: ateIierphusis@wanadoo.fr
A76: TEL | B76: Tél. : 06 09 81 30 37 | F76: 39 | G76: COSTELLI Davide | H76: ENSP | I76: DAVIDECOSTELLI | J76: 40, rue d'HautpouI | K76: 75019 Paris | L76: Tel. :0610 92 97 31 | M76: dcosteIIi@gmaiI.com
A77: MAIL | B77: lydie.chamblas@map-arohitectescom | F77: 40 | G77: COUSSERAN Alain | H77: /NH (ENIHP) | I77: GROUPE SIGNES | J77: 162, rue du faubourg Saint Denis | K77: 75010 Paris | L77: Tel. : 01 40 22 95 95 | M77: groupe@signes-paysages.fr
A78: NOM | B78: CHARRIER Gwenaelle | F78: 40 | G78: DAMEE olivier | H78: ENSP | I78: DAMEE VALLET & ASSOCIÉS SARL | J78: 12 et 12 bis, rue Melingue | K78: 75019 Paris | L78: Tel. : 01 42 06 38 60 | M78: d.v.a@dvapaysages.com
A79: FORMATION | B79: ENSP | F79: 41 | G79: DARD Charles | H79: ENSP | I79: CHARLES DARD PAYSAGISTE | J79: 31, rue Henri Chevreau | K79: 75020 Paris | L79: Tel.:0146361115 | M79: charIes.dard@orange.fr
A80: STE | B80: 1, cour des Oeillets | F80: 41 | G80: ALLEAUME Céline | H80: GEMBLOUX | I80: ARCHITECTE PAYSAGISTE | J80: 0 | K80: 78470 Saint Remy les Chevreuse | L80: 0 | M80: celinealleaume@outlook.fr
A81: ADRESSE | B81: 77600 Bussy Saint Georges | F81: 42 | G81: ARNOUX Maxime | H81: ENSP | I81: CONCEPTEUR DPLG | J81: 5, rue Armand Silvestre Appt 4 | K81: 92400 Courbevoie | L81: 0 | M81: 0
A82: CP VILLE | B82: Tel. : 06 4312 40 04 | F82: 42 | G82: AUDOUY Michel | H82: ENSP | I82: MICHEL AUDOUY ARCHITECTE-PAYSAGISTE | J82: 14, rue Deparcieux | K82: 75014 Paris | L82: Tel. : 01 43 21 61 86 | M82: micheI.audouy@wanadoo.fr
A83: TEL | F83: 43 | G83: BARNOUD Benoît | H83: ENSP | I83: ALTITUDE 35 | J83: 28, rue du Canal | K83: 93200 Saint Denis | L83: Tél. : 06 83 37 4612 | M83: benoit.barnoud@aItitude35.com
A84: MAIL | F84: 43 | G84: DE DREUZY Henri | H84: ENSP | I84: AGENCE BABYLONE | J84: 56, rue de Paradis | K84: 75010 Paris | L84: Tel. : 01 49 23 51 01 | M84: contact@agencebabyIone.com
A85: NOM | B85: COTTET Vincent | F85: 44 | G85: DELBOY Sylvain | H85: ENSP | I85: SENSOMOTO Paysagistes | J85: 28, rue Danton | K85: 93310 Le Pre Saint Gervais | L85: Tel. : 09 53 34 08 00 | M85: ateIier@sensomoto.org
A86: FORMATION | B86: ENSP | F86: 44 | G86: DEMACHY Alexandre | H86: ENSP | I86: AD PAYSAGISTE | J86: 20, avenue Paul Appell | K86: 75014 Paris | L86: Tel. : 06 61 90 43 30 | M86: adpaysagiste@free.fr
A87: STE | B87: RICHEZ Assoc|És PAYSAGE | F87: 45 | G87: DESHAYES Yves | H87: ENSP | I87: 0 | J87: 20, rue de Neuilly | K87: 92110 Clichy | L87: Tel. : 01 47 31 21 57 | M87: 0
A88: ADRESSE | B88: 2, rue de la Roquette | F88: 45 | G88: l=oLLÉA Bertrand | H88: ENSP | I88: AGENCE BERTRAND FOLLÉA -CLAIRE GAUTIER | J88: 100, avenue Henri Ginoux | K88: 92120 Montrouge | L88: Tel. : 01 47 35 71 33 | M88: agence@foIlea-gautier.com
A89: CP VILLE | B89: 75011 Paris | F89: 46 | G89: BASSINET Grégoire | H89: 0 | I89: BASSINET TUROUIN PAYSAGE | J89: 56, rue du faubourg Poissonnière | K89: 75010 Paris | L89: Tél.:0142 2612 46 | M89: oontact@btpaysage.oom
A90: TEL | B90: Tel. : 01 43 38 22 55 | F90: 46 | G90: BOUR Sophie | H90: ENSP | I90: D'AUTREPART | J90: 46, rue Andre Thome | K90: 78120 Sonchamp | L90: Tél. :0612 9188 49 | M90: sophie@dautrepart.fr
A91: MAIL | B91: maiI@riohezassooies.com | F91: 47 | G91: CHARLES - LE FRANC Daphné | H91: ENSP | I91: DAPHNÉ CHARLES - PAYSAGES SAS | J91: 15, rue Rougemont | K91: 75009 Paris | L91: Tel. : 09 52 510019 | M91: daphne.charIes@Wanadoo.fr
A92: NOM | B92: CHASTEL-ASSE Sabine | F92: 47 | G92: BAVA Henri | H92: ENSP | I92: AGENCE TER | J92: 18-20, rue du Faubourg du Temple | K92: 75011 Paris | L92: Tel.:014314 34 00 | M92: contact@agenceter.com
A93: FORMATION | B93: ENSP | F93: 48 | G93: BIANCHI Marta | H93: ENSP | I93: BIANCHIMAJER - SERVICES D' ARCHITECTURE ET DE PAYSAGE | J93: 37, rue de la Grange aux Belles | K93: 75010 Paris | L93: Tél. : 01 42 45 00 76 | M93: oontact@bianohimajer.oom
A94: STE | B94: ATELIER CONCEPTION PAYSAGE | F94: 48 | G94: BLUME Marc | H94: FE (Allemagne) | I94: ATELIER EEM | J94: 33, rue Ramponeau | K94: 75020 Paris | L94: Tel. : 01 75 51 33 24 | M94: m@ateIier-eem.org
A95: ADRESSE | B95: 30, rue des Salles | F95: 49 | G95: BOUCHER Thomas | H95: ENSP | I95: PRAXYS | J95: 155, rue de Belleville | K95: 75019 Paris | L95: Tél.:0142 77 2613 | M95: administratif@praxys-paysage.fr
A96: CP VILLE | B96: 92400 Courbevoie | F96: 49 | G96: BRUNET Catherine | H96: ENSP | I96: CATHERINE BRUNET PAYSAGISTE | J96: 10 ter, rue Bisson | K96: 75020 Paris | L96: Tél.:O143 571615 | M96: o.brunet.paysagiste@free.fr
A97: TEL | B97: Tel. : 01 47 68 83 53 | F97: 50 | G97: BRUTER Jonathan | H97: ENSAP Bx | I97: LANOD | J97: 8, rue Joseph Dijon | K97: 75018 Paris | L97: Tél. : 09 83 85 02 91 | M97: contact@Ianod.net
A98: MAIL | B98: atelierconceptionpaysage@orange.fr | F98: 50 | G98: CATOIRE Marion | H98: ESAJ | I98: L'ARBRE À CAM AGENCE | J98: 49, avenue Maréchal Lattre de Tassigny | K98: 94600 Choisy le Roi | L98: Tél. : 09 51 33 60 59 | M98: Iarbreacam@gmaiI.com
A99: NOM | B99: COUSIN Romuald | F99: 51 | G99: CHAMBLAS Lydie | H99: Habilitée FFP | I99: M. A. P | J99: 25, rue Hebert | K99: 92140 Clamart | L99: Tél. : 06 09 81 30 37 | M99: lydie.chamblas@map-arohitectescom
A100: FORMATION | B100: /NH (ENIHP) | F100: 51 | G100: CHARRIER Gwenaelle | H100: ENSP | I100: 1, cour des Oeillets | J100: 77600 Bussy Saint Georges | K100: Tel. : 06 4312 40 04 | L100: 0 | M100: 0
A101: STE | B101: ENDROITS EN VERT | F101: 52 | G101: COTTET Vincent | H101: ENSP | I101: RICHEZ Assoc|És PAYSAGE | J101: 2, rue de la Roquette | K101: 75011 Paris | L101: Tel. : 01 43 38 22 55 | M101: maiI@riohezassooies.com
A102: ADRESSE | B102: 23, quai Alfred Sisley | F102: 52 | G102: CHASTEL-ASSE Sabine | H102: ENSP | I102: ATELIER CONCEPTION PAYSAGE | J102: 30, rue des Salles | K102: 92400 Courbevoie | L102: Tel. : 01 47 68 83 53 | M102: atelierconceptionpaysage@orange.fr
A103: CP VILLE | B103: 92390 Villeneuve la Garenne | F103: =F102+1 -> 53 | G103: COUSIN Romuald | H103: /NH (ENIHP) | I103: ENDROITS EN VERT | J103: 23, quai Alfred Sisley | K103: 92390 Villeneuve la Garenne | L103: Tél. : 01 46 85 87 81 | M103: r.cousin@endroitsenvert.fr
A104: TEL | B104: Tél. : 01 46 85 87 81 | F104: 53 | G104: CLARAMUNT Marc | H104: ENSP | I104: ATELIER PHUSIS | J104: 26, rue des Trois Bornes | K104: 75011 Paris | L104: Tél. : 01 49 23 01 44 | M104: ateIierphusis@wanadoo.fr
A105: MAIL | B105: r.cousin@endroitsenvert.fr | F105: 54 | G105: COSTELLI Davide | H105: ENSP | I105: DAVIDECOSTELLI | J105: 40, rue d'HautpouI | K105: 75019 Paris | L105: Tel. :0610 92 97 31 | M105: dcosteIIi@gmaiI.com
A106: NOM | B106: CLARAMUNT Marc | F106: 54 | G106: COUSSERAN Alain | H106: /NH (ENIHP) | I106: GROUPE SIGNES | J106: 162, rue du faubourg Saint Denis | K106: 75010 Paris | L106: Tel. : 01 40 22 95 95 | M106: groupe@signes-paysages.fr
A107: FORMATION | B107: ENSP | F107: 55 | G107: DAMEE olivier | H107: ENSP | I107: DAMEE VALLET & ASSOCIÉS SARL | J107: 12 et 12 bis, rue Melingue | K107: 75019 Paris | L107: Tel. : 01 42 06 38 60 | M107: d.v.a@dvapaysages.com
A108: STE | B108: ATELIER PHUSIS | F108: 55 | G108: DARD Charles | H108: ENSP | I108: CHARLES DARD PAYSAGISTE | J108: 31, rue Henri Chevreau | K108: 75020 Paris | L108: Tel.:0146361115 | M108: charIes.dard@orange.fr
A109: ADRESSE | B109: 26, rue des Trois Bornes | F109: 56 | G109: ALLEAUME Céline | H109: GEMBLOUX | I109: ARCHITECTE PAYSAGISTE | J109: 0 | K109: 78470 Saint Remy les Chevreuse | L109: 0 | M109: celinealleaume@outlook.fr
A110: CP VILLE | B110: 75011 Paris | F110: 56 | G110: ARNOUX Maxime | H110: ENSP | I110: CONCEPTEUR DPLG | J110: 5, rue Armand Silvestre Appt 4 | K110: 92400 Courbevoie | L110: 0 | M110: 0
A111: TEL | B111: Tél. : 01 49 23 01 44 | F111: 57 | G111: AUDOUY Michel | H111: ENSP | I111: MICHEL AUDOUY ARCHITECTE-PAYSAGISTE | J111: 14, rue Deparcieux | K111: 75014 Paris | L111: Tel. : 01 43 21 61 86 | M111: micheI.audouy@wanadoo.fr
A112: MAIL | B112: ateIierphusis@wanadoo.fr | F112: 57 | G112: BARNOUD Benoît | H112: ENSP | I112: ALTITUDE 35 | J112: 28, rue du Canal | K112: 93200 Saint Denis | L112: Tél. : 06 83 37 4612 | M112: benoit.barnoud@aItitude35.com
A113: NOM | B113: COSTELLI Davide | F113: 58 | G113: DE DREUZY Henri | H113: ENSP | I113: AGENCE BABYLONE | J113: 56, rue de Paradis | K113: 75010 Paris | L113: Tel. : 01 49 23 51 01 | M113: contact@agencebabyIone.com
A114: FORMATION | B114: ENSP | F114: 58 | G114: DELBOY Sylvain | H114: ENSP | I114: SENSOMOTO Paysagistes | J114: 28, rue Danton | K114: 93310 Le Pre Saint Gervais | L114: Tel. : 09 53 34 08 00 | M114: ateIier@sensomoto.org
A115: STE | B115: DAVIDECOSTELLI | F115: 59 | G115: DEMACHY Alexandre | H115: ENSP | I115: AD PAYSAGISTE | J115: 20, avenue Paul Appell | K115: 75014 Paris | L115: Tel. : 06 61 90 43 30 | M115: adpaysagiste@free.fr
A116: ADRESSE | B116: 40, rue d'HautpouI | F116: 59 | G116: DESHAYES Yves | H116: ENSP | I116: 0 | J116: 20, rue de Neuilly | K116: 92110 Clichy | L116: Tel. : 01 47 31 21 57 | M116: 0
A117: CP VILLE | B117: 75019 Paris | F117: 60 | G117: l=oLLÉA Bertrand | H117: ENSP | I117: AGENCE BERTRAND FOLLÉA -CLAIRE GAUTIER | J117: 100, avenue Henri Ginoux | K117: 92120 Montrouge | L117: Tel. : 01 47 35 71 33 | M117: agence@foIlea-gautier.com
A118: TEL | B118: Tel. :0610 92 97 31 | F118: 60 | G118: BASSINET Grégoire | H118: 0 | I118: BASSINET TUROUIN PAYSAGE | J118: 56, rue du faubourg Poissonnière | K118: 75010 Paris | L118: Tél.:0142 2612 46 | M118: oontact@btpaysage.oom
A119: MAIL | B119: dcosteIIi@gmaiI.com | F119: 61 | G119: BOUR Sophie | H119: ENSP | I119: D'AUTREPART | J119: 46, rue Andre Thome | K119: 78120 Sonchamp | L119: Tél. :0612 9188 49 | M119: sophie@dautrepart.fr
A120: NOM | B120: COUSSERAN Alain | F120: 61 | G120: CHARLES - LE FRANC Daphné | H120: ENSP | I120: DAPHNÉ CHARLES - PAYSAGES SAS | J120: 15, rue Rougemont | K120: 75009 Paris | L120: Tel. : 09 52 510019 | M120: daphne.charIes@Wanadoo.fr
A121: FORMATION | B121: /NH (ENIHP) | F121: 62 | G121: BAVA Henri | H121: ENSP | I121: AGENCE TER | J121: 18-20, rue du Faubourg du Temple | K121: 75011 Paris | L121: Tel.:014314 34 00 | M121: contact@agenceter.com
A122: STE | B122: GROUPE SIGNES | F122: 62 | G122: BIANCHI Marta | H122: ENSP | I122: BIANCHIMAJER - SERVICES D' ARCHITECTURE ET DE PAYSAGE | J122: 37, rue de la Grange aux Belles | K122: 75010 Paris | L122: Tél. : 01 42 45 00 76 | M122: oontact@bianohimajer.oom
A123: ADRESSE | B123: 162, rue du faubourg Saint Denis | F123: 63 | G123: BLUME Marc | H123: FE (Allemagne) | I123: ATELIER EEM | J123: 33, rue Ramponeau | K123: 75020 Paris | L123: Tel. : 01 75 51 33 24 | M123: m@ateIier-eem.org
A124: CP VILLE | B124: 75010 Paris | F124: 63 | G124: BOUCHER Thomas | H124: ENSP | I124: PRAXYS | J124: 155, rue de Belleville | K124: 75019 Paris | L124: Tél.:0142 77 2613 | M124: administratif@praxys-paysage.fr
A125: TEL | B125: Tel. : 01 40 22 95 95 | F125: 64 | G125: BRUNET Catherine | H125: ENSP | I125: CATHERINE BRUNET PAYSAGISTE | J125: 10 ter, rue Bisson | K125: 75020 Paris | L125: Tél.:O143 571615 | M125: o.brunet.paysagiste@free.fr
A126: MAIL | B126: groupe@signes-paysages.fr | F126: 64 | G126: BRUTER Jonathan | H126: ENSAP Bx | I126: LANOD | J126: 8, rue Joseph Dijon | K126: 75018 Paris | L126: Tél. : 09 83 85 02 91 | M126: contact@Ianod.net
A127: NOM | B127: DAMEE olivier | F127: 65 | G127: CATOIRE Marion | H127: ESAJ | I127: L'ARBRE À CAM AGENCE | J127: 49, avenue Maréchal Lattre de Tassigny | K127: 94600 Choisy le Roi | L127: Tél. : 09 51 33 60 59 | M127: Iarbreacam@gmaiI.com
A128: FORMATION | B128: ENSP | F128: 65 | G128: CHAMBLAS Lydie | H128: Habilitée FFP | I128: M. A. P | J128: 25, rue Hebert | K128: 92140 Clamart | L128: Tél. : 06 09 81 30 37 | M128: lydie.chamblas@map-arohitectescom
A129: STE | B129: DAMEE VALLET & ASSOCIÉS SARL | F129: 66 | G129: CHARRIER Gwenaelle | H129: ENSP | I129: 1, cour des Oeillets | J129: 77600 Bussy Saint Georges | K129: Tel. : 06 4312 40 04 | L129: 0 | M129: 0
A130: ADRESSE | B130: 12 et 12 bis, rue Melingue | F130: 66 | G130: COTTET Vincent | H130: ENSP | I130: RICHEZ Assoc|És PAYSAGE | J130: 2, rue de la Roquette | K130: 75011 Paris | L130: Tel. : 01 43 38 22 55 | M130: maiI@riohezassooies.com
A131: CP VILLE | B131: 75019 Paris | F131: 67 | G131: =INDIRECT("b"&COLUMN(A:A)+(7*ROW(130:130)-7)) -> CHASTEL-ASSE Sabine | H131: =INDIRECT("b"&COLUMN(B:B)+(7*ROW(130:130)-7)) -> ENSP | I131: =INDIRECT("b"&COLUMN(C:C)+(7*ROW(130:130)-7)) -> ATELIER CONCEPTION PAYSAGE | J131: =INDIRECT("b"&COLUMN(D:D)+(7*ROW(130:130)-7)) -> 30, rue des Salles | K131: =INDIRECT("b"&COLUMN(E:E)+(7*ROW(130:130)-7)) -> 92400 Courbevoie | L131: =INDIRECT("b"&COLUMN(F:F)+(7*ROW(130:130)-7)) -> Tel. : 01 47 68 83 53 | M131: =INDIRECT("b"&COLUMN(G:G)+(7*ROW(130:130)-7)) -> atelierconceptionpaysage@orange.fr
A132: TEL | B132: Tel. : 01 42 06 38 60 | F132: 67 | G132: COUSIN Romuald | H132: /NH (ENIHP) | I132: ENDROITS EN VERT | J132: 23, quai Alfred Sisley | K132: 92390 Villeneuve la Garenne | L132: Tél. : 01 46 85 87 81 | M132: r.cousin@endroitsenvert.fr
A133: MAIL | B133: d.v.a@dvapaysages.com | F133: 68 | G133: CLARAMUNT Marc | H133: ENSP | I133: ATELIER PHUSIS | J133: 26, rue des Trois Bornes | K133: 75011 Paris | L133: Tél. : 01 49 23 01 44 | M133: ateIierphusis@wanadoo.fr
A134: NOM | B134: DARD Charles | F134: 68 | G134: COSTELLI Davide | H134: ENSP | I134: DAVIDECOSTELLI | J134: 40, rue d'HautpouI | K134: 75019 Paris | L134: Tel. :0610 92 97 31 | M134: dcosteIIi@gmaiI.com
A135: FORMATION | B135: ENSP | F135: 69 | G135: COUSSERAN Alain | H135: /NH (ENIHP) | I135: GROUPE SIGNES | J135: 162, rue du faubourg Saint Denis | K135: 75010 Paris | L135: Tel. : 01 40 22 95 95 | M135: groupe@signes-paysages.fr
A136: STE | B136: CHARLES DARD PAYSAGISTE | F136: 69 | G136: DAMEE olivier | H136: ENSP | I136: DAMEE VALLET & ASSOCIÉS SARL | J136: 12 et 12 bis, rue Melingue | K136: 75019 Paris | L136: Tel. : 01 42 06 38 60 | M136: d.v.a@dvapaysages.com
A137: ADRESSE | B137: 31, rue Henri Chevreau | F137: 70 | G137: DARD Charles | H137: ENSP | I137: CHARLES DARD PAYSAGISTE | J137: 31, rue Henri Chevreau | K137: 75020 Paris | L137: Tel.:0146361115 | M137: charIes.dard@orange.fr
A138: CP VILLE | B138: 75020 Paris | F138: 70 | G138: ALLEAUME Céline | H138: GEMBLOUX | I138: ARCHITECTE PAYSAGISTE | J138: 0 | K138: 78470 Saint Remy les Chevreuse | L138: 0 | M138: celinealleaume@outlook.fr
A139: TEL | B139: Tel.:0146361115 | F139: 71 | G139: ARNOUX Maxime | H139: ENSP | I139: CONCEPTEUR DPLG | J139: 5, rue Armand Silvestre Appt 4 | K139: 92400 Courbevoie | L139: 0 | M139: 0
A140: MAIL | B140: charIes.dard@orange.fr | F140: 71 | G140: AUDOUY Michel | H140: ENSP | I140: MICHEL AUDOUY ARCHITECTE-PAYSAGISTE | J140: 14, rue Deparcieux | K140: 75014 Paris | L140: Tel. : 01 43 21 61 86 | M140: micheI.audouy@wanadoo.fr
A141: NOM | B141: ALLEAUME Céline | F141: 72 | G141: BARNOUD Benoît | H141: ENSP | I141: ALTITUDE 35 | J141: 28, rue du Canal | K141: 93200 Saint Denis | L141: Tél. : 06 83 37 4612 | M141: benoit.barnoud@aItitude35.com
A142: FORMATION | B142: GEMBLOUX | F142: 72 | G142: DE DREUZY Henri | H142: ENSP | I142: AGENCE BABYLONE | J142: 56, rue de Paradis | K142: 75010 Paris | L142: Tel. : 01 49 23 51 01 | M142: contact@agencebabyIone.com
A143: STE | B143: ARCHITECTE PAYSAGISTE | F143: 73 | G143: DELBOY Sylvain | H143: ENSP | I143: SENSOMOTO Paysagistes | J143: 28, rue Danton | K143: 93310 Le Pre Saint Gervais | L143: Tel. : 09 53 34 08 00 | M143: ateIier@sensomoto.org
A144: ADRESSE | F144: 73 | G144: DEMACHY Alexandre | H144: ENSP | I144: AD PAYSAGISTE | J144: 20, avenue Paul Appell | K144: 75014 Paris | L144: Tel. : 06 61 90 43 30 | M144: adpaysagiste@free.fr
A145: CP VILLE | B145: 78470 Saint Remy les Chevreuse | F145: 74 | G145: DESHAYES Yves | H145: ENSP | I145: 0 | J145: 20, rue de Neuilly | K145: 92110 Clichy | L145: Tel. : 01 47 31 21 57 | M145: 0
A146: TEL | F146: 74 | G146: l=oLLÉA Bertrand | H146: ENSP | I146: AGENCE BERTRAND FOLLÉA -CLAIRE GAUTIER | J146: 100, avenue Henri Ginoux | K146: 92120 Montrouge | L146: Tel. : 01 47 35 71 33 | M146: agence@foIlea-gautier.com
A147: MAIL | B147: celinealleaume@outlook.fr | F147: 75 | G147: BASSINET Grégoire | H147: 0 | I147: BASSINET TUROUIN PAYSAGE | J147: 56, rue du faubourg Poissonnière | K147: 75010 Paris | L147: Tél.:0142 2612 46 | M147: oontact@btpaysage.oom
A148: NOM | B148: ARNOUX Maxime | F148: 75 | G148: BOUR Sophie | H148: ENSP | I148: D'AUTREPART | J148: 46, rue Andre Thome | K148: 78120 Sonchamp | L148: Tél. :0612 9188 49 | M148: sophie@dautrepart.fr
A149: FORMATION | B149: ENSP | F149: 76 | G149: CHARLES - LE FRANC Daphné | H149: ENSP | I149: DAPHNÉ CHARLES - PAYSAGES SAS | J149: 15, rue Rougemont | K149: 75009 Paris | L149: Tel. : 09 52 510019 | M149: daphne.charIes@Wanadoo.fr
A150: STE | B150: CONCEPTEUR DPLG | F150: 76 | G150: BAVA Henri | H150: ENSP | I150: AGENCE TER | J150: 18-20, rue du Faubourg du Temple | K150: 75011 Paris | L150: Tel.:014314 34 00 | M150: contact@agenceter.com
A151: ADRESSE | B151: 5, rue Armand Silvestre Appt 4 | F151: 77 | G151: BIANCHI Marta | H151: ENSP | I151: BIANCHIMAJER - SERVICES D' ARCHITECTURE ET DE PAYSAGE | J151: 37, rue de la Grange aux Belles | K151: 75010 Paris | L151: Tél. : 01 42 45 00 76 | M151: oontact@bianohimajer.oom
A152: CP VILLE | B152: 92400 Courbevoie | F152: 77 | G152: BLUME Marc | H152: FE (Allemagne) | I152: ATELIER EEM | J152: 33, rue Ramponeau | K152: 75020 Paris | L152: Tel. : 01 75 51 33 24 | M152: m@ateIier-eem.org
A153: TEL | F153: 78 | G153: BOUCHER Thomas | H153: ENSP | I153: PRAXYS | J153: 155, rue de Belleville | K153: 75019 Paris | L153: Tél.:0142 77 2613 | M153: administratif@praxys-paysage.fr
A154: MAIL | F154: 78 | G154: BRUNET Catherine | H154: ENSP | I154: CATHERINE BRUNET PAYSAGISTE | J154: 10 ter, rue Bisson | K154: 75020 Paris | L154: Tél.:O143 571615 | M154: o.brunet.paysagiste@free.fr
A155: NOM | B155: AUDOUY Michel | F155: 79 | G155: BRUTER Jonathan | H155: ENSAP Bx | I155: LANOD | J155: 8, rue Joseph Dijon | K155: 75018 Paris | L155: Tél. : 09 83 85 02 91 | M155: contact@Ianod.net
A156: FORMATION | B156: ENSP | F156: 79 | G156: CATOIRE Marion | H156: ESAJ | I156: L'ARBRE À CAM AGENCE | J156: 49, avenue Maréchal Lattre de Tassigny | K156: 94600 Choisy le Roi | L156: Tél. : 09 51 33 60 59 | M156: Iarbreacam@gmaiI.com
A157: STE | B157: MICHEL AUDOUY ARCHITECTE-PAYSAGISTE | F157: 80 | G157: CHAMBLAS Lydie | H157: Habilitée FFP | I157: M. A. P | J157: 25, rue Hebert | K157: 92140 Clamart | L157: Tél. : 06 09 81 30 37 | M157: lydie.chamblas@map-arohitectescom
A158: ADRESSE | B158: 14, rue Deparcieux | F158: 80 | G158: CHARRIER Gwenaelle | H158: ENSP | I158: 1, cour des Oeillets | J158: 77600 Bussy Saint Georges | K158: Tel. : 06 4312 40 04 | L158: 0 | M158: 0
A159: CP VILLE | B159: 75014 Paris | F159: 81 | G159: COTTET Vincent | H159: ENSP | I159: RICHEZ Assoc|És PAYSAGE | J159: 2, rue de la Roquette | K159: 75011 Paris | L159: Tel. : 01 43 38 22 55 | M159: maiI@riohezassooies.com
A160: TEL | B160: Tel. : 01 43 21 61 86 | F160: 81 | G160: CHASTEL-ASSE Sabine | H160: ENSP | I160: ATELIER CONCEPTION PAYSAGE | J160: 30, rue des Salles | K160: 92400 Courbevoie | L160: Tel. : 01 47 68 83 53 | M160: atelierconceptionpaysage@orange.fr
A161: MAIL | B161: micheI.audouy@wanadoo.fr | F161: 82 | G161: COUSIN Romuald | H161: /NH (ENIHP) | I161: ENDROITS EN VERT | J161: 23, quai Alfred Sisley | K161: 92390 Villeneuve la Garenne | L161: Tél. : 01 46 85 87 81 | M161: r.cousin@endroitsenvert.fr
A162: NOM | B162: BARNOUD Benoît | F162: 82 | G162: CLARAMUNT Marc | H162: ENSP | I162: ATELIER PHUSIS | J162: 26, rue des Trois Bornes | K162: 75011 Paris | L162: Tél. : 01 49 23 01 44 | M162: ateIierphusis@wanadoo.fr
A163: FORMATION | B163: ENSP | F163: 83 | G163: COSTELLI Davide | H163: ENSP | I163: DAVIDECOSTELLI | J163: 40, rue d'HautpouI | K163: 75019 Paris | L163: Tel. :0610 92 97 31 | M163: dcosteIIi@gmaiI.com
A164: STE | B164: ALTITUDE 35 | F164: 83 | G164: COUSSERAN Alain | H164: /NH (ENIHP) | I164: GROUPE SIGNES | J164: 162, rue du faubourg Saint Denis | K164: 75010 Paris | L164: Tel. : 01 40 22 95 95 | M164: groupe@signes-paysages.fr
A165: ADRESSE | B165: 28, rue du Canal | F165: 84 | G165: DAMEE olivier | H165: ENSP | I165: DAMEE VALLET & ASSOCIÉS SARL | J165: 12 et 12 bis, rue Melingue | K165: 75019 Paris | L165: Tel. : 01 42 06 38 60 | M165: d.v.a@dvapaysages.com
A166: CP VILLE | B166: 93200 Saint Denis | F166: 84 | G166: DARD Charles | H166: ENSP | I166: CHARLES DARD PAYSAGISTE | J166: 31, rue Henri Chevreau | K166: 75020 Paris | L166: Tel.:0146361115 | M166: charIes.dard@orange.fr
A167: TEL | B167: Tél. : 06 83 37 4612 | F167: =F166+1 -> 85 | G167: ALLEAUME Céline | H167: GEMBLOUX | I167: ARCHITECTE PAYSAGISTE | J167: 0 | K167: 78470 Saint Remy les Chevreuse | L167: 0 | M167: celinealleaume@outlook.fr
A168: MAIL | B168: benoit.barnoud@aItitude35.com | F168: 85 | G168: ARNOUX Maxime | H168: ENSP | I168: CONCEPTEUR DPLG | J168: 5, rue Armand Silvestre Appt 4 | K168: 92400 Courbevoie | L168: 0 | M168: 0
A169: NOM | B169: DE DREUZY Henri | F169: 86 | G169: AUDOUY Michel | H169: ENSP | I169: MICHEL AUDOUY ARCHITECTE-PAYSAGISTE | J169: 14, rue Deparcieux | K169: 75014 Paris | L169: Tel. : 01 43 21 61 86 | M169: micheI.audouy@wanadoo.fr
A170: FORMATION | B170: ENSP | F170: 86 | G170: BARNOUD Benoît | H170: ENSP | I170: ALTITUDE 35 | J170: 28, rue du Canal | K170: 93200 Saint Denis | L170: Tél. : 06 83 37 4612 | M170: benoit.barnoud@aItitude35.com
A171: STE | B171: AGENCE BABYLONE | F171: 87 | G171: DE DREUZY Henri | H171: ENSP | I171: AGENCE BABYLONE | J171: 56, rue de Paradis | K171: 75010 Paris | L171: Tel. : 01 49 23 51 01 | M171: contact@agencebabyIone.com
A172: ADRESSE | B172: 56, rue de Paradis | F172: 87 | G172: DELBOY Sylvain | H172: ENSP | I172: SENSOMOTO Paysagistes | J172: 28, rue Danton | K172: 93310 Le Pre Saint Gervais | L172: Tel. : 09 53 34 08 00 | M172: ateIier@sensomoto.org
A173: CP VILLE | B173: 75010 Paris | F173: 88 | G173: DEMACHY Alexandre | H173: ENSP | I173: AD PAYSAGISTE | J173: 20, avenue Paul Appell | K173: 75014 Paris | L173: Tel. : 06 61 90 43 30 | M173: adpaysagiste@free.fr
A174: TEL | B174: Tel. : 01 49 23 51 01 | F174: 88 | G174: DESHAYES Yves | H174: ENSP | I174: 0 | J174: 20, rue de Neuilly | K174: 92110 Clichy | L174: Tel. : 01 47 31 21 57 | M174: 0
A175: MAIL | B175: contact@agencebabyIone.com | F175: 89 | G175: l=oLLÉA Bertrand | H175: ENSP | I175: AGENCE BERTRAND FOLLÉA -CLAIRE GAUTIER | J175: 100, avenue Henri Ginoux | K175: 92120 Montrouge | L175: Tel. : 01 47 35 71 33 | M175: agence@foIlea-gautier.com
A176: NOM | B176: DELBOY Sylvain | F176: 89 | G176: BASSINET Grégoire | H176: 0 | I176: BASSINET TUROUIN PAYSAGE | J176: 56, rue du faubourg Poissonnière | K176: 75010 Paris | L176: Tél.:0142 2612 46 | M176: oontact@btpaysage.oom
A177: FORMATION | B177: ENSP | F177: 90 | G177: BOUR Sophie | H177: ENSP | I177: D'AUTREPART | J177: 46, rue Andre Thome | K177: 78120 Sonchamp | L177: Tél. :0612 9188 49 | M177: sophie@dautrepart.fr
A178: STE | B178: SENSOMOTO Paysagistes | F178: 90 | G178: CHARLES - LE FRANC Daphné | H178: ENSP | I178: DAPHNÉ CHARLES - PAYSAGES SAS | J178: 15, rue Rougemont | K178: 75009 Paris | L178: Tel. : 09 52 510019 | M178: daphne.charIes@Wanadoo.fr
A179: ADRESSE | B179: 28, rue Danton | F179: 91 | G179: BAVA Henri | H179: ENSP | I179: AGENCE TER | J179: 18-20, rue du Faubourg du Temple | K179: 75011 Paris | L179: Tel.:014314 34 00 | M179: contact@agenceter.com
A180: CP VILLE | B180: 93310 Le Pre Saint Gervais | F180: 91 | G180: BIANCHI Marta | H180: ENSP | I180: BIANCHIMAJER - SERVICES D' ARCHITECTURE ET DE PAYSAGE | J180: 37, rue de la Grange aux Belles | K180: 75010 Paris | L180: Tél. : 01 42 45 00 76 | M180: oontact@bianohimajer.oom
A181: TEL | B181: Tel. : 09 53 34 08 00 | F181: 92 | G181: BLUME Marc | H181: FE (Allemagne) | I181: ATELIER EEM | J181: 33, rue Ramponeau | K181: 75020 Paris | L181: Tel. : 01 75 51 33 24 | M181: m@ateIier-eem.org
A182: MAIL | B182: ateIier@sensomoto.org | F182: 92 | G182: BOUCHER Thomas | H182: ENSP | I182: PRAXYS | J182: 155, rue de Belleville | K182: 75019 Paris | L182: Tél.:0142 77 2613 | M182: administratif@praxys-paysage.fr
A183: NOM | B183: DEMACHY Alexandre | F183: 93 | G183: BRUNET Catherine | H183: ENSP | I183: CATHERINE BRUNET PAYSAGISTE | J183: 10 ter, rue Bisson | K183: 75020 Paris | L183: Tél.:O143 571615 | M183: o.brunet.paysagiste@free.fr
A184: FORMATION | B184: ENSP | F184: 93 | G184: BRUTER Jonathan | H184: ENSAP Bx | I184: LANOD | J184: 8, rue Joseph Dijon | K184: 75018 Paris | L184: Tél. : 09 83 85 02 91 | M184: contact@Ianod.net
A185: STE | B185: AD PAYSAGISTE | F185: 94 | G185: CATOIRE Marion | H185: ESAJ | I185: L'ARBRE À CAM AGENCE | J185: 49, avenue Maréchal Lattre de Tassigny | K185: 94600 Choisy le Roi | L185: Tél. : 09 51 33 60 59 | M185: Iarbreacam@gmaiI.com
A186: ADRESSE | B186: 20, avenue Paul Appell | F186: 94 | G186: CHAMBLAS Lydie | H186: Habilitée FFP | I186: M. A. P | J186: 25, rue Hebert | K186: 92140 Clamart | L186: Tél. : 06 09 81 30 37 | M186: lydie.chamblas@map-arohitectescom
A187: CP VILLE | B187: 75014 Paris | F187: 95 | G187: CHARRIER Gwenaelle | H187: ENSP | I187: 1, cour des Oeillets | J187: 77600 Bussy Saint Georges | K187: Tel. : 06 4312 40 04 | L187: 0 | M187: 0
A188: TEL | B188: Tel. : 06 61 90 43 30 | F188: 95 | G188: COTTET Vincent | H188: ENSP | I188: RICHEZ Assoc|És PAYSAGE | J188: 2, rue de la Roquette | K188: 75011 Paris | L188: Tel. : 01 43 38 22 55 | M188: maiI@riohezassooies.com
A189: MAIL | B189: adpaysagiste@free.fr | F189: 96 | G189: CHASTEL-ASSE Sabine | H189: ENSP | I189: ATELIER CONCEPTION PAYSAGE | J189: 30, rue des Salles | K189: 92400 Courbevoie | L189: Tel. : 01 47 68 83 53 | M189: atelierconceptionpaysage@orange.fr
A190: NOM | B190: DESHAYES Yves | F190: 96 | G190: COUSIN Romuald | H190: /NH (ENIHP) | I190: ENDROITS EN VERT | J190: 23, quai Alfred Sisley | K190: 92390 Villeneuve la Garenne | L190: Tél. : 01 46 85 87 81 | M190: r.cousin@endroitsenvert.fr
A191: FORMATION | B191: ENSP | F191: 97 | G191: CLARAMUNT Marc | H191: ENSP | I191: ATELIER PHUSIS | J191: 26, rue des Trois Bornes | K191: 75011 Paris | L191: Tél. : 01 49 23 01 44 | M191: ateIierphusis@wanadoo.fr
A192: STE | F192: 97 | G192: COSTELLI Davide | H192: ENSP | I192: DAVIDECOSTELLI | J192: 40, rue d'HautpouI | K192: 75019 Paris | L192: Tel. :0610 92 97 31 | M192: dcosteIIi@gmaiI.com
A193: ADRESSE | B193: 20, rue de Neuilly | F193: 98 | G193: COUSSERAN Alain | H193: /NH (ENIHP) | I193: GROUPE SIGNES | J193: 162, rue du faubourg Saint Denis | K193: 75010 Paris | L193: Tel. : 01 40 22 95 95 | M193: groupe@signes-paysages.fr
A194: CP VILLE | B194: 92110 Clichy | F194: 98 | G194: DAMEE olivier | H194: ENSP | I194: DAMEE VALLET & ASSOCIÉS SARL | J194: 12 et 12 bis, rue Melingue | K194: 75019 Paris | L194: Tel. : 01 42 06 38 60 | M194: d.v.a@dvapaysages.com
A195: TEL | B195: Tel. : 01 47 31 21 57 | F195: 99 | G195: =INDIRECT("b"&COLUMN(A:A)+(7*ROW(194:194)-7)) -> DARD Charles | H195: =INDIRECT("b"&COLUMN(B:B)+(7*ROW(194:194)-7)) -> ENSP | I195: =INDIRECT("b"&COLUMN(C:C)+(7*ROW(194:194)-7)) -> CHARLES DARD PAYSAGISTE | J195: =INDIRECT("b"&COLUMN(D:D)+(7*ROW(194:194)-7)) -> 31, rue Henri Chevreau | K195: =INDIRECT("b"&COLUMN(E:E)+(7*ROW(194:194)-7)) -> 75020 Paris | L195: =INDIRECT("b"&COLUMN(F:F)+(7*ROW(194:194)-7)) -> Tel.:0146361115 | M195: =INDIRECT("b"&COLUMN(G:G)+(7*ROW(194:194)-7)) -> charIes.dard@orange.fr
A196: MAIL | F196: 99 | G196: ALLEAUME Céline | H196: GEMBLOUX | I196: ARCHITECTE PAYSAGISTE | J196: 0 | K196: 78470 Saint Remy les Chevreuse | L196: 0 | M196: celinealleaume@outlook.fr
A197: NOM | B197: l=oLLÉA Bertrand | F197: 100 | G197: ARNOUX Maxime | H197: ENSP | I197: CONCEPTEUR DPLG | J197: 5, rue Armand Silvestre Appt 4 | K197: 92400 Courbevoie | L197: 0 | M197: 0
A198: FORMATION | B198: ENSP | F198: 100 | G198: AUDOUY Michel | H198: ENSP | I198: MICHEL AUDOUY ARCHITECTE-PAYSAGISTE | J198: 14, rue Deparcieux | K198: 75014 Paris | L198: Tel. : 01 43 21 61 86 | M198: micheI.audouy@wanadoo.fr
A199: STE | B199: AGENCE BERTRAND FOLLÉA -CLAIRE GAUTIER | F199: 101 | G199: BARNOUD Benoît | H199: ENSP | I199: ALTITUDE 35 | J199: 28, rue du Canal | K199: 93200 Saint Denis | L199: Tél. : 06 83 37 4612 | M199: benoit.barnoud@aItitude35.com
A200: ADRESSE | B200: 100, avenue Henri Ginoux | F200: 102 | G200: DE DREUZY Henri | H200: ENSP | I200: AGENCE BABYLONE | J200: 56, rue de Paradis | K200: 75010 Paris | L200: Tel. : 01 49 23 51 01 | M200: contact@agencebabyIone.com
... 3048 more rows

Sheet Feuil2
A1: ident | B1: NOM | C1: FORMATION | D1: STE | E1: ADRESSE | F1: CP VILLE | G1: TEL | H1: MAIL
B2: BASSINET Grégoire | D2: BASSINET TUROUIN PAYSAGE | E2: 56, rue du faubourg Poissonnière | F2: 75010 Paris | G2: Tél.:0142 2612 46 | H2: oontact@btpaysage.oom
B3: BOUR Sophie | C3: ENSP | D3: D'AUTREPART | E3: 46, rue Andre Thome | F3: 78120 Sonchamp | G3: Tél. :0612 9188 49 | H3: sophie@dautrepart.fr
B4: CHARLES - LE FRANC Daphné | C4: ENSP | D4: DAPHNÉ CHARLES - PAYSAGES SAS | E4: 15, rue Rougemont | F4: 75009 Paris | G4: Tel. : 09 52 510019 | H4: daphne.charIes@Wanadoo.fr
B5: BAVA Henri | C5: ENSP | D5: AGENCE TER | E5: 18-20, rue du Faubourg du Temple | F5: 75011 Paris | G5: Tel.:014314 34 00 | H5: contact@agenceter.com
B6: BIANCHI Marta | C6: ENSP | D6: BIANCHIMAJER - SERVICES D' ARCHITECTURE ET DE PAYSAGE | E6: 37, rue de la Grange aux Belles | F6: 75010 Paris | G6: Tél. : 01 42 45 00 76 | H6: oontact@bianohimajer.oom
B7: BLUME Marc | C7: FE (Allemagne) | D7: ATELIER EEM | E7: 33, rue Ramponeau | F7: 75020 Paris | G7: Tel. : 01 75 51 33 24 | H7: m@ateIier-eem.org
B8: BOUCHER Thomas | C8: ENSP | D8: PRAXYS | E8: 155, rue de Belleville | F8: 75019 Paris | G8: Tél.:0142 77 2613 | H8: administratif@praxys-paysage.fr
B9: BRUNET Catherine | C9: ENSP | D9: CATHERINE BRUNET PAYSAGISTE | E9: 10 ter, rue Bisson | F9: 75020 Paris | G9: Tél.:O143 571615 | H9: o.brunet.paysagiste@free.fr
B10: BRUTER Jonathan | C10: ENSAP Bx | D10: LANOD | E10: 8, rue Joseph Dijon | F10: 75018 Paris | G10: Tél. : 09 83 85 02 91 | H10: contact@Ianod.net
B11: CATOIRE Marion | C11: ESAJ | D11: L'ARBRE À CAM AGENCE | E11: 49, avenue Maréchal Lattre de Tassigny | F11: 94600 Choisy le Roi | G11: Tél. : 09 51 33 60 59 | H11: Iarbreacam@gmaiI.com
B12: CHAMBLAS Lydie | C12: Habilitée FFP | D12: M. A. P | E12: 25, rue Hebert | F12: 92140 Clamart | G12: Tél. : 06 09 81 30 37 | H12: lydie.chamblas@map-arohitectescom
B13: CHARRIER Gwenaelle | C13: ENSP | D13: 1, cour des Oeillets | E13: 77600 Bussy Saint Georges | F13: Tel. : 06 4312 40 04
B14: COTTET Vincent | C14: ENSP | D14: RICHEZ Assoc|És PAYSAGE | E14: 2, rue de la Roquette | F14: 75011 Paris | G14: Tel. : 01 43 38 22 55 | H14: maiI@riohezassooies.com
B15: CHASTEL-ASSE Sabine | C15: ENSP | D15: ATELIER CONCEPTION PAYSAGE | E15: 30, rue des Salles | F15: 92400 Courbevoie | G15: Tel. : 01 47 68 83 53 | H15: atelierconceptionpaysage@orange.fr
B16: COUSIN Romuald | C16: /NH (ENIHP) | D16: ENDROITS EN VERT | E16: 23, quai Alfred Sisley | F16: 92390 Villeneuve la Garenne | G16: Tél. : 01 46 85 87 81 | H16: r.cousin@endroitsenvert.fr
B17: CLARAMUNT Marc | C17: ENSP | D17: ATELIER PHUSIS | E17: 26, rue des Trois Bornes | F17: 75011 Paris | G17: Tél. : 01 49 23 01 44 | H17: ateIierphusis@wanadoo.fr
B18: COSTELLI Davide | C18: ENSP | D18: DAVIDECOSTELLI | E18: 40, rue d'HautpouI | F18: 75019 Paris | G18: Tel. :0610 92 97 31 | H18: dcosteIIi@gmaiI.com
B19: COUSSERAN Alain | C19: /NH (ENIHP) | D19: GROUPE SIGNES | E19: 162, rue du faubourg Saint Denis | F19: 75010 Paris | G19: Tel. : 01 40 22 95 95 | H19: groupe@signes-paysages.fr
B20: DAMEE olivier | C20: ENSP | D20: DAMEE VALLET & ASSOCIÉS SARL | E20: 12 et 12 bis, rue Melingue | F20: 75019 Paris | G20: Tel. : 01 42 06 38 60 | H20: d.v.a@dvapaysages.com
B21: DARD Charles | C21: ENSP | D21: CHARLES DARD PAYSAGISTE | E21: 31, rue Henri Chevreau | F21: 75020 Paris | G21: Tel.:0146361115 | H21: charIes.dard@orange.fr
B22: ALLEAUME Céline | C22: GEMBLOUX | D22: ARCHITECTE PAYSAGISTE | F22: 78470 Saint Remy les Chevreuse | H22: celinealleaume@outlook.fr
B23: ARNOUX Maxime | C23: ENSP | D23: CONCEPTEUR DPLG | E23: 5, rue Armand Silvestre Appt 4 | F23: 92400 Courbevoie
B24: AUDOUY Michel | C24: ENSP | D24: MICHEL AUDOUY ARCHITECTE-PAYSAGISTE | E24: 14, rue Deparcieux | F24: 75014 Paris | G24: Tel. : 01 43 21 61 86 | H24: micheI.audouy@wanadoo.fr
B25: BARNOUD Benoît | C25: ENSP | D25: ALTITUDE 35 | E25: 28, rue du Canal | F25: 93200 Saint Denis | G25: Tél. : 06 83 37 4612 | H25: benoit.barnoud@aItitude35.com
B26: DE DREUZY Henri | C26: ENSP | D26: AGENCE BABYLONE | E26: 56, rue de Paradis | F26: 75010 Paris | G26: Tel. : 01 49 23 51 01 | H26: contact@agencebabyIone.com
B27: DELBOY Sylvain | C27: ENSP | D27: SENSOMOTO Paysagistes | E27: 28, rue Danton | F27: 93310 Le Pre Saint Gervais | G27: Tel. : 09 53 34 08 00 | H27: ateIier@sensomoto.org
B28: DEMACHY Alexandre | C28: ENSP | D28: AD PAYSAGISTE | E28: 20, avenue Paul Appell | F28: 75014 Paris | G28: Tel. : 06 61 90 43 30 | H28: adpaysagiste@free.fr
B29: DESHAYES Yves | C29: ENSP | E29: 20, rue de Neuilly | F29: 92110 Clichy | G29: Tel. : 01 47 31 21 57
B30: l=oLLÉA Bertrand | C30: ENSP | D30: AGENCE BERTRAND FOLLÉA -CLAIRE GAUTIER | E30: 100, avenue Henri Ginoux | F30: 92120 Montrouge | G30: Tel. : 01 47 35 71 33 | H30: agence@foIlea-gautier.com

Sheet Feuil3
G1: NOM | H1: FORMATION | I1: STE | J1: ADRESSE | K1: CP VILLE | L1: TEL | M1: MAIL
F2: 1 | G2: =INDIRECT("feuil1!b"&COLUMN(A:A)+(7*ROW(1:1)-7)) -> BASSINET Grégoire | H2: =INDIRECT("feuil1!b"&COLUMN(B:B)+(7*ROW(1:1)-7)) -> 0 | I2: BASSINET TUROUIN PAYSAGE | J2: 56, rue du faubourg Poissonnière | K2: 75010 Paris | L2: Tél.:0142 2612 46 | M2: oontact@btpaysage.oom
F3: 2 | G3: =INDIRECT("feuil1!b"&COLUMN(A:A)+(7*ROW(2:2)-7)) -> BOUR Sophie | H3: =INDIRECT("feuil1!b"&COLUMN(B:B)+(7*ROW(2:2)-7)) -> ENSP | I3: =INDIRECT("feuil1!b"&COLUMN(C:C)+(7*ROW(2:2)-7)) -> D'AUTREPART | J3: =INDIRECT("feuil1!b"&COLUMN(D:D)+(7*ROW(2:2)-7)) -> 46, rue Andre Thome | K3: =INDIRECT("feuil1!b"&COLUMN(E:E)+(7*ROW(2:2)-7)) -> 78120 Sonchamp | L3: =INDIRECT("feuil1!b"&COLUMN(F:F)+(7*ROW(2:2)-7)) -> Tél. :0612 9188 49 | M3: =INDIRECT("feuil1!b"&COLUMN(G:G)+(7*ROW(2:2)-7)) -> sophie@dautrepart.fr
F4: 3 | G4: CHARLES - LE FRANC Daphné | H4: ENSP | I4: DAPHNÉ CHARLES - PAYSAGES SAS | J4: 15, rue Rougemont | K4: 75009 Paris | L4: Tel. : 09 52 510019 | M4: daphne.charIes@Wanadoo.fr
F5: 4 | G5: BAVA Henri | H5: ENSP | I5: AGENCE TER | J5: 18-20, rue du Faubourg du Temple | K5: 75011 Paris | L5: Tel.:014314 34 00 | M5: contact@agenceter.com
F6: 5 | G6: BIANCHI Marta | H6: ENSP | I6: BIANCHIMAJER - SERVICES D' ARCHITECTURE ET DE PAYSAGE | J6: 37, rue de la Grange aux Belles | K6: 75010 Paris | L6: Tél. : 01 42 45 00 76 | M6: oontact@bianohimajer.oom
F7: 6 | G7: BLUME Marc | H7: FE (Allemagne) | I7: ATELIER EEM | J7: 33, rue Ramponeau | K7: 75020 Paris | L7: Tel. : 01 75 51 33 24 | M7: m@ateIier-eem.org
F8: 7 | G8: BOUCHER Thomas | H8: ENSP | I8: PRAXYS | J8: 155, rue de Belleville | K8: 75019 Paris | L8: Tél.:0142 77 2613 | M8: administratif@praxys-paysage.fr
F9: 8 | G9: BRUNET Catherine | H9: ENSP | I9: CATHERINE BRUNET PAYSAGISTE | J9: 10 ter, rue Bisson | K9: 75020 Paris | L9: Tél.:O143 571615 | M9: o.brunet.paysagiste@free.fr
F10: 9 | G10: BRUTER Jonathan | H10: ENSAP Bx | I10: LANOD | J10: 8, rue Joseph Dijon | K10: 75018 Paris | L10: Tél. : 09 83 85 02 91 | M10: contact@Ianod.net
F11: 10 | G11: CATOIRE Marion | H11: ESAJ | I11: L'ARBRE À CAM AGENCE | J11: 49, avenue Maréchal Lattre de Tassigny | K11: 94600 Choisy le Roi | L11: Tél. : 09 51 33 60 59 | M11: Iarbreacam@gmaiI.com
F12: 11 | G12: CHAMBLAS Lydie | H12: Habilitée FFP | I12: M. A. P | J12: 25, rue Hebert | K12: 92140 Clamart | L12: Tél. : 06 09 81 30 37 | M12: lydie.chamblas@map-arohitectescom
F13: 12 | G13: CHARRIER Gwenaelle | H13: ENSP | I13: 1, cour des Oeillets | J13: 77600 Bussy Saint Georges | K13: Tel. : 06 4312 40 04 | L13: 0 | M13: 0
F14: 13 | G14: COTTET Vincent | H14: ENSP | I14: RICHEZ Assoc|És PAYSAGE | J14: 2, rue de la Roquette | K14: 75011 Paris | L14: Tel. : 01 43 38 22 55 | M14: maiI@riohezassooies.com
F15: 14 | G15: CHASTEL-ASSE Sabine | H15: ENSP | I15: ATELIER CONCEPTION PAYSAGE | J15: 30, rue des Salles | K15: 92400 Courbevoie | L15: Tel. : 01 47 68 83 53 | M15: atelierconceptionpaysage@orange.fr
F16: 15 | G16: COUSIN Romuald | H16: /NH (ENIHP) | I16: ENDROITS EN VERT | J16: 23, quai Alfred Sisley | K16: 92390 Villeneuve la Garenne | L16: Tél. : 01 46 85 87 81 | M16: r.cousin@endroitsenvert.fr
F17: 16 | G17: CLARAMUNT Marc | H17: ENSP | I17: ATELIER PHUSIS | J17: 26, rue des Trois Bornes | K17: 75011 Paris | L17: Tél. : 01 49 23 01 44 | M17: ateIierphusis@wanadoo.fr
F18: 17 | G18: COSTELLI Davide | H18: ENSP | I18: DAVIDECOSTELLI | J18: 40, rue d'HautpouI | K18: 75019 Paris | L18: Tel. :0610 92 97 31 | M18: dcosteIIi@gmaiI.com
F19: 18 | G19: COUSSERAN Alain | H19: /NH (ENIHP) | I19: GROUPE SIGNES | J19: 162, rue du faubourg Saint Denis | K19: 75010 Paris | L19: Tel. : 01 40 22 95 95 | M19: groupe@signes-paysages.fr
F20: 19 | G20: DAMEE olivier | H20: ENSP | I20: DAMEE VALLET & ASSOCIÉS SARL | J20: 12 et 12 bis, rue Melingue | K20: 75019 Paris | L20: Tel. : 01 42 06 38 60 | M20: d.v.a@dvapaysages.com
F21: 20 | G21: DARD Charles | H21: ENSP | I21: CHARLES DARD PAYSAGISTE | J21: 31, rue Henri Chevreau | K21: 75020 Paris | L21: Tel.:0146361115 | M21: charIes.dard@orange.fr
F22: 21 | G22: ALLEAUME Céline | H22: GEMBLOUX | I22: ARCHITECTE PAYSAGISTE | J22: 0 | K22: 78470 Saint Remy les Chevreuse | L22: 0 | M22: celinealleaume@outlook.fr
F23: 22 | G23: ARNOUX Maxime | H23: ENSP | I23: CONCEPTEUR DPLG | J23: 5, rue Armand Silvestre Appt 4 | K23: 92400 Courbevoie | L23: 0 | M23: 0
F24: 23 | G24: AUDOUY Michel | H24: ENSP | I24: MICHEL AUDOUY ARCHITECTE-PAYSAGISTE | J24: 14, rue Deparcieux | K24: 75014 Paris | L24: Tel. : 01 43 21 61 86 | M24: micheI.audouy@wanadoo.fr
F25: 24 | G25: BARNOUD Benoît | H25: ENSP | I25: ALTITUDE 35 | J25: 28, rue du Canal | K25: 93200 Saint Denis | L25: Tél. : 06 83 37 4612 | M25: benoit.barnoud@aItitude35.com
F26: 25 | G26: DE DREUZY Henri | H26: ENSP | I26: AGENCE BABYLONE | J26: 56, rue de Paradis | K26: 75010 Paris | L26: Tel. : 01 49 23 51 01 | M26: contact@agencebabyIone.com
F27: 26 | G27: DELBOY Sylvain | H27: ENSP | I27: SENSOMOTO Paysagistes | J27: 28, rue Danton | K27: 93310 Le Pre Saint Gervais | L27: Tel. : 09 53 34 08 00 | M27: ateIier@sensomoto.org
F28: 27 | G28: DEMACHY Alexandre | H28: ENSP | I28: AD PAYSAGISTE | J28: 20, avenue Paul Appell | K28: 75014 Paris | L28: Tel. : 06 61 90 43 30 | M28: adpaysagiste@free.fr
F29: 28 | G29: DESHAYES Yves | H29: ENSP | I29: 0 | J29: 20, rue de Neuilly | K29: 92110 Clichy | L29: Tel. : 01 47 31 21 57 | M29: 0
F30: 29 | G30: l=oLLÉA Bertrand | H30: ENSP | I30: AGENCE BERTRAND FOLLÉA -CLAIRE GAUTIER | J30: 100, avenue Henri Ginoux | K30: 92120 Montrouge | L30: Tel. : 01 47 35 71 33 | M30: agence@foIlea-gautier.com
F31: 30 | G31: BASSINET Grégoire | H31: 0 | I31: BASSINET TUROUIN PAYSAGE | J31: 56, rue du faubourg Poissonnière | K31: 75010 Paris | L31: Tél.:0142 2612 46 | M31: oontact@btpaysage.oom
F32: 31 | G32: BOUR Sophie | H32: ENSP | I32: D'AUTREPART | J32: 46, rue Andre Thome | K32: 78120 Sonchamp | L32: Tél. :0612 9188 49 | M32: sophie@dautrepart.fr
F33: 32 | G33: CHARLES - LE FRANC Daphné | H33: ENSP | I33: DAPHNÉ CHARLES - PAYSAGES SAS | J33: 15, rue Rougemont | K33: 75009 Paris | L33: Tel. : 09 52 510019 | M33: daphne.charIes@Wanadoo.fr
F34: 33 | G34: BAVA Henri | H34: ENSP | I34: AGENCE TER | J34: 18-20, rue du Faubourg du Temple | K34: 75011 Paris | L34: Tel.:014314 34 00 | M34: contact@agenceter.com
F35: 34 | G35: BIANCHI Marta | H35: ENSP | I35: BIANCHIMAJER - SERVICES D' ARCHITECTURE ET DE PAYSAGE | J35: 37, rue de la Grange aux Belles | K35: 75010 Paris | L35: Tél. : 01 42 45 00 76 | M35: oontact@bianohimajer.oom
F36: 35 | G36: BLUME Marc | H36: FE (Allemagne) | I36: ATELIER EEM | J36: 33, rue Ramponeau | K36: 75020 Paris | L36: Tel. : 01 75 51 33 24 | M36: m@ateIier-eem.org
F37: 36 | G37: BOUCHER Thomas | H37: ENSP | I37: PRAXYS | J37: 155, rue de Belleville | K37: 75019 Paris | L37: Tél.:0142 77 2613 | M37: administratif@praxys-paysage.fr
F38: 37 | G38: BRUNET Catherine | H38: ENSP | I38: CATHERINE BRUNET PAYSAGISTE | J38: 10 ter, rue Bisson | K38: 75020 Paris | L38: Tél.:O143 571615 | M38: o.brunet.paysagiste@free.fr
F39: 38 | G39: BRUTER Jonathan | H39: ENSAP Bx | I39: LANOD | J39: 8, rue Joseph Dijon | K39: 75018 Paris | L39: Tél. : 09 83 85 02 91 | M39: contact@Ianod.net
F40: 39 | G40: CATOIRE Marion | H40: ESAJ | I40: L'ARBRE À CAM AGENCE | J40: 49, avenue Maréchal Lattre de Tassigny | K40: 94600 Choisy le Roi | L40: Tél. : 09 51 33 60 59 | M40: Iarbreacam@gmaiI.com
F41: 40 | G41: CHAMBLAS Lydie | H41: Habilitée FFP | I41: M. A. P | J41: 25, rue Hebert | K41: 92140 Clamart | L41: Tél. : 06 09 81 30 37 | M41: lydie.chamblas@map-arohitectescom
F42: 41 | G42: CHARRIER Gwenaelle | H42: ENSP | I42: 1, cour des Oeillets | J42: 77600 Bussy Saint Georges | K42: Tel. : 06 4312 40 04 | L42: 0 | M42: 0
F43: 42 | G43: COTTET Vincent | H43: ENSP | I43: RICHEZ Assoc|És PAYSAGE | J43: 2, rue de la Roquette | K43: 75011 Paris | L43: Tel. : 01 43 38 22 55 | M43: maiI@riohezassooies.com
F44: 43 | G44: CHASTEL-ASSE Sabine | H44: ENSP | I44: ATELIER CONCEPTION PAYSAGE | J44: 30, rue des Salles | K44: 92400 Courbevoie | L44: Tel. : 01 47 68 83 53 | M44: atelierconceptionpaysage@orange.fr
F45: 44 | G45: COUSIN Romuald | H45: /NH (ENIHP) | I45: ENDROITS EN VERT | J45: 23, quai Alfred Sisley | K45: 92390 Villeneuve la Garenne | L45: Tél. : 01 46 85 87 81 | M45: r.cousin@endroitsenvert.fr
F46: 45 | G46: CLARAMUNT Marc | H46: ENSP | I46: ATELIER PHUSIS | J46: 26, rue des Trois Bornes | K46: 75011 Paris | L46: Tél. : 01 49 23 01 44 | M46: ateIierphusis@wanadoo.fr
F47: 46 | G47: COSTELLI Davide | H47: ENSP | I47: DAVIDECOSTELLI | J47: 40, rue d'HautpouI | K47: 75019 Paris | L47: Tel. :0610 92 97 31 | M47: dcosteIIi@gmaiI.com
F48: 47 | G48: COUSSERAN Alain | H48: /NH (ENIHP) | I48: GROUPE SIGNES | J48: 162, rue du faubourg Saint Denis | K48: 75010 Paris | L48: Tel. : 01 40 22 95 95 | M48: groupe@signes-paysages.fr
F49: 48 | G49: DAMEE olivier | H49: ENSP | I49: DAMEE VALLET & ASSOCIÉS SARL | J49: 12 et 12 bis, rue Melingue | K49: 75019 Paris | L49: Tel. : 01 42 06 38 60 | M49: d.v.a@dvapaysages.com
F50: 49 | G50: DARD Charles | H50: ENSP | I50: CHARLES DARD PAYSAGISTE | J50: 31, rue Henri Chevreau | K50: 75020 Paris | L50: Tel.:0146361115 | M50: charIes.dard@orange.fr
F51: 50 | G51: ALLEAUME Céline | H51: GEMBLOUX | I51: ARCHITECTE PAYSAGISTE | J51: 0 | K51: 78470 Saint Remy les Chevreuse | L51: 0 | M51: celinealleaume@outlook.fr
F52: 51 | G52: ARNOUX Maxime | H52: ENSP | I52: CONCEPTEUR DPLG | J52: 5, rue Armand Silvestre Appt 4 | K52: 92400 Courbevoie | L52: 0 | M52: 0
F53: 52 | G53: AUDOUY Michel | H53: ENSP | I53: MICHEL AUDOUY ARCHITECTE-PAYSAGISTE | J53: 14, rue Deparcieux | K53: 75014 Paris | L53: Tel. : 01 43 21 61 86 | M53: micheI.audouy@wanadoo.fr
F54: 53 | G54: BARNOUD Benoît | H54: ENSP | I54: ALTITUDE 35 | J54: 28, rue du Canal | K54: 93200 Saint Denis | L54: Tél. : 06 83 37 4612 | M54: benoit.barnoud@aItitude35.com
F55: 54 | G55: DE DREUZY Henri | H55: ENSP | I55: AGENCE BABYLONE | J55: 56, rue de Paradis | K55: 75010 Paris | L55: Tel. : 01 49 23 51 01 | M55: contact@agencebabyIone.com
F56: 55 | G56: DELBOY Sylvain | H56: ENSP | I56: SENSOMOTO Paysagistes | J56: 28, rue Danton | K56: 93310 Le Pre Saint Gervais | L56: Tel. : 09 53 34 08 00 | M56: ateIier@sensomoto.org
F57: 56 | G57: DEMACHY Alexandre | H57: ENSP | I57: AD PAYSAGISTE | J57: 20, avenue Paul Appell | K57: 75014 Paris | L57: Tel. : 06 61 90 43 30 | M57: adpaysagiste@free.fr
F58: 57 | G58: DESHAYES Yves | H58: ENSP | I58: 0 | J58: 20, rue de Neuilly | K58: 92110 Clichy | L58: Tel. : 01 47 31 21 57 | M58: 0
F59: 58 | G59: l=oLLÉA Bertrand | H59: ENSP | I59: AGENCE BERTRAND FOLLÉA -CLAIRE GAUTIER | J59: 100, avenue Henri Ginoux | K59: 92120 Montrouge | L59: Tel. : 01 47 35 71 33 | M59: agence@foIlea-gautier.com
F60: 59 | G60: BASSINET Grégoire | H60: 0 | I60: BASSINET TUROUIN PAYSAGE | J60: 56, rue du faubourg Poissonnière | K60: 75010 Paris | L60: Tél.:0142 2612 46 | M60: oontact@btpaysage.oom
F61: 60 | G61: BOUR Sophie | H61: ENSP | I61: D'AUTREPART | J61: 46, rue Andre Thome | K61: 78120 Sonchamp | L61: Tél. :0612 9188 49 | M61: sophie@dautrepart.fr
F62: 61 | G62: CHARLES - LE FRANC Daphné | H62: ENSP | I62: DAPHNÉ CHARLES - PAYSAGES SAS | J62: 15, rue Rougemont | K62: 75009 Paris | L62: Tel. : 09 52 510019 | M62: daphne.charIes@Wanadoo.fr
F63: 62 | G63: BAVA Henri | H63: ENSP | I63: AGENCE TER | J63: 18-20, rue du Faubourg du Temple | K63: 75011 Paris | L63: Tel.:014314 34 00 | M63: contact@agenceter.com
F64: 63 | G64: BIANCHI Marta | H64: ENSP | I64: BIANCHIMAJER - SERVICES D' ARCHITECTURE ET DE PAYSAGE | J64: 37, rue de la Grange aux Belles | K64: 75010 Paris | L64: Tél. : 01 42 45 00 76 | M64: oontact@bianohimajer.oom
F65: 64 | G65: BLUME Marc | H65: FE (Allemagne) | I65: ATELIER EEM | J65: 33, rue Ramponeau | K65: 75020 Paris | L65: Tel. : 01 75 51 33 24 | M65: m@ateIier-eem.org
F66: 65 | G66: BOUCHER Thomas | H66: ENSP | I66: PRAXYS | J66: 155, rue de Belleville | K66: 75019 Paris | L66: Tél.:0142 77 2613 | M66: administratif@praxys-paysage.fr
F67: 66 | G67: =INDIRECT("feuil1!b"&COLUMN(A:A)+(7*ROW(66:66)-7)) -> BRUNET Catherine | H67: =INDIRECT("feuil1!b"&COLUMN(B:B)+(7*ROW(66:66)-7)) -> ENSP | I67: =INDIRECT("feuil1!b"&COLUMN(C:C)+(7*ROW(66:66)-7)) -> CATHERINE BRUNET PAYSAGISTE | J67: =INDIRECT("feuil1!b"&COLUMN(D:D)+(7*ROW(66:66)-7)) -> 10 ter, rue Bisson | K67: =INDIRECT("feuil1!b"&COLUMN(E:E)+(7*ROW(66:66)-7)) -> 75020 Paris | L67: =INDIRECT("feuil1!b"&COLUMN(F:F)+(7*ROW(66:66)-7)) -> Tél.:O143 571615 | M67: =INDIRECT("feuil1!b"&COLUMN(G:G)+(7*ROW(66:66)-7)) -> o.brunet.paysagiste@free.fr
F68: 67 | G68: BRUTER Jonathan | H68: ENSAP Bx | I68: LANOD | J68: 8, rue Joseph Dijon | K68: 75018 Paris | L68: Tél. : 09 83 85 02 91 | M68: contact@Ianod.net
F69: 68 | G69: CATOIRE Marion | H69: ESAJ | I69: L'ARBRE À CAM AGENCE | J69: 49, avenue Maréchal Lattre de Tassigny | K69: 94600 Choisy le Roi | L69: Tél. : 09 51 33 60 59 | M69: Iarbreacam@gmaiI.com
F70: 69 | G70: CHAMBLAS Lydie | H70: Habilitée FFP | I70: M. A. P | J70: 25, rue Hebert | K70: 92140 Clamart | L70: Tél. : 06 09 81 30 37 | M70: lydie.chamblas@map-arohitectescom
F71: 70 | G71: CHARRIER Gwenaelle | H71: ENSP | I71: 1, cour des Oeillets | J71: 77600 Bussy Saint Georges | K71: Tel. : 06 4312 40 04 | L71: 0 | M71: 0
F72: 71 | G72: COTTET Vincent | H72: ENSP | I72: RICHEZ Assoc|És PAYSAGE | J72: 2, rue de la Roquette | K72: 75011 Paris | L72: Tel. : 01 43 38 22 55 | M72: maiI@riohezassooies.com
F73: 72 | G73: CHASTEL-ASSE Sabine | H73: ENSP | I73: ATELIER CONCEPTION PAYSAGE | J73: 30, rue des Salles | K73: 92400 Courbevoie | L73: Tel. : 01 47 68 83 53 | M73: atelierconceptionpaysage@orange.fr
F74: 73 | G74: COUSIN Romuald | H74: /NH (ENIHP) | I74: ENDROITS EN VERT | J74: 23, quai Alfred Sisley | K74: 92390 Villeneuve la Garenne | L74: Tél. : 01 46 85 87 81 | M74: r.cousin@endroitsenvert.fr
F75: 74 | G75: CLARAMUNT Marc | H75: ENSP | I75: ATELIER PHUSIS | J75: 26, rue des Trois Bornes | K75: 75011 Paris | L75: Tél. : 01 49 23 01 44 | M75: ateIierphusis@wanadoo.fr
F76: 75 | G76: COSTELLI Davide | H76: ENSP | I76: DAVIDECOSTELLI | J76: 40, rue d'HautpouI | K76: 75019 Paris | L76: Tel. :0610 92 97 31 | M76: dcosteIIi@gmaiI.com
F77: 76 | G77: COUSSERAN Alain | H77: /NH (ENIHP) | I77: GROUPE SIGNES | J77: 162, rue du faubourg Saint Denis | K77: 75010 Paris | L77: Tel. : 01 40 22 95 95 | M77: groupe@signes-paysages.fr
F78: 77 | G78: DAMEE olivier | H78: ENSP | I78: DAMEE VALLET & ASSOCIÉS SARL | J78: 12 et 12 bis, rue Melingue | K78: 75019 Paris | L78: Tel. : 01 42 06 38 60 | M78: d.v.a@dvapaysages.com
F79: 78 | G79: DARD Charles | H79: ENSP | I79: CHARLES DARD PAYSAGISTE | J79: 31, rue Henri Chevreau | K79: 75020 Paris | L79: Tel.:0146361115 | M79: charIes.dard@orange.fr
F80: 79 | G80: ALLEAUME Céline | H80: GEMBLOUX | I80: ARCHITECTE PAYSAGISTE | J80: 0 | K80: 78470 Saint Remy les Chevreuse | L80: 0 | M80: celinealleaume@outlook.fr
F81: 80 | G81: ARNOUX Maxime | H81: ENSP | I81: CONCEPTEUR DPLG | J81: 5, rue Armand Silvestre Appt 4 | K81: 92400 Courbevoie | L81: 0 | M81: 0
F82: 81 | G82: AUDOUY Michel | H82: ENSP | I82: MICHEL AUDOUY ARCHITECTE-PAYSAGISTE | J82: 14, rue Deparcieux | K82: 75014 Paris | L82: Tel. : 01 43 21 61 86 | M82: micheI.audouy@wanadoo.fr
F83: 82 | G83: BARNOUD Benoît | H83: ENSP | I83: ALTITUDE 35 | J83: 28, rue du Canal | K83: 93200 Saint Denis | L83: Tél. : 06 83 37 4612 | M83: benoit.barnoud@aItitude35.com
F84: 83 | G84: DE DREUZY Henri | H84: ENSP | I84: AGENCE BABYLONE | J84: 56, rue de Paradis | K84: 75010 Paris | L84: Tel. : 01 49 23 51 01 | M84: contact@agencebabyIone.com
F85: 84 | G85: DELBOY Sylvain | H85: ENSP | I85: SENSOMOTO Paysagistes | J85: 28, rue Danton | K85: 93310 Le Pre Saint Gervais | L85: Tel. : 09 53 34 08 00 | M85: ateIier@sensomoto.org
F86: 85 | G86: DEMACHY Alexandre | H86: ENSP | I86: AD PAYSAGISTE | J86: 20, avenue Paul Appell | K86: 75014 Paris | L86: Tel. : 06 61 90 43 30 | M86: adpaysagiste@free.fr
F87: 86 | G87: DESHAYES Yves | H87: ENSP | I87: 0 | J87: 20, rue de Neuilly | K87: 92110 Clichy | L87: Tel. : 01 47 31 21 57 | M87: 0
F88: 87 | G88: l=oLLÉA Bertrand | H88: ENSP | I88: AGENCE BERTRAND FOLLÉA -CLAIRE GAUTIER | J88: 100, avenue Henri Ginoux | K88: 92120 Montrouge | L88: Tel. : 01 47 35 71 33 | M88: agence@foIlea-gautier.com
F89: 88 | G89: BASSINET Grégoire | H89: 0 | I89: BASSINET TUROUIN PAYSAGE | J89: 56, rue du faubourg Poissonnière | K89: 75010 Paris | L89: Tél.:0142 2612 46 | M89: oontact@btpaysage.oom
F90: 89 | G90: BOUR Sophie | H90: ENSP | I90: D'AUTREPART | J90: 46, rue Andre Thome | K90: 78120 Sonchamp | L90: Tél. :0612 9188 49 | M90: sophie@dautrepart.fr
F91: 90 | G91: CHARLES - LE FRANC Daphné | H91: ENSP | I91: DAPHNÉ CHARLES - PAYSAGES SAS | J91: 15, rue Rougemont | K91: 75009 Paris | L91: Tel. : 09 52 510019 | M91: daphne.charIes@Wanadoo.fr
F92: 91 | G92: BAVA Henri | H92: ENSP | I92: AGENCE TER | J92: 18-20, rue du Faubourg du Temple | K92: 75011 Paris | L92: Tel.:014314 34 00 | M92: contact@agenceter.com
F93: 92 | G93: BIANCHI Marta | H93: ENSP | I93: BIANCHIMAJER - SERVICES D' ARCHITECTURE ET DE PAYSAGE | J93: 37, rue de la Grange aux Belles | K93: 75010 Paris | L93: Tél. : 01 42 45 00 76 | M93: oontact@bianohimajer.oom
F94: 93 | G94: BLUME Marc | H94: FE (Allemagne) | I94: ATELIER EEM | J94: 33, rue Ramponeau | K94: 75020 Paris | L94: Tel. : 01 75 51 33 24 | M94: m@ateIier-eem.org
F95: 94 | G95: BOUCHER Thomas | H95: ENSP | I95: PRAXYS | J95: 155, rue de Belleville | K95: 75019 Paris | L95: Tél.:0142 77 2613 | M95: administratif@praxys-paysage.fr
F96: 95 | G96: BRUNET Catherine | H96: ENSP | I96: CATHERINE BRUNET PAYSAGISTE | J96: 10 ter, rue Bisson | K96: 75020 Paris | L96: Tél.:O143 571615 | M96: o.brunet.paysagiste@free.fr
F97: 96 | G97: BRUTER Jonathan | H97: ENSAP Bx | I97: LANOD | J97: 8, rue Joseph Dijon | K97: 75018 Paris | L97: Tél. : 09 83 85 02 91 | M97: contact@Ianod.net
F98: 97 | G98: CATOIRE Marion | H98: ESAJ | I98: L'ARBRE À CAM AGENCE | J98: 49, avenue Maréchal Lattre de Tassigny | K98: 94600 Choisy le Roi | L98: Tél. : 09 51 33 60 59 | M98: Iarbreacam@gmaiI.com
F99: 98 | G99: CHAMBLAS Lydie | H99: Habilitée FFP | I99: M. A. P | J99: 25, rue Hebert | K99: 92140 Clamart | L99: Tél. : 06 09 81 30 37 | M99: lydie.chamblas@map-arohitectescom
F100: 99 | G100: CHARRIER Gwenaelle | H100: ENSP | I100: 1, cour des Oeillets | J100: 77600 Bussy Saint Georges | K100: Tel. : 06 4312 40 04 | L100: 0 | M100: 0
F101: 100 | G101: COTTET Vincent | H101: ENSP | I101: RICHEZ Assoc|És PAYSAGE | J101: 2, rue de la Roquette | K101: 75011 Paris | L101: Tel. : 01 43 38 22 55 | M101: maiI@riohezassooies.com
F102: 101 | G102: CHASTEL-ASSE Sabine | H102: ENSP | I102: ATELIER CONCEPTION PAYSAGE | J102: 30, rue des Salles | K102: 92400 Courbevoie | L102: Tel. : 01 47 68 83 53 | M102: atelierconceptionpaysage@orange.fr
F103: 102 | G103: COUSIN Romuald | H103: /NH (ENIHP) | I103: ENDROITS EN VERT | J103: 23, quai Alfred Sisley | K103: 92390 Villeneuve la Garenne | L103: Tél. : 01 46 85 87 81 | M103: r.cousin@endroitsenvert.fr
F104: 103 | G104: CLARAMUNT Marc | H104: ENSP | I104: ATELIER PHUSIS | J104: 26, rue des Trois Bornes | K104: 75011 Paris | L104: Tél. : 01 49 23 01 44 | M104: ateIierphusis@wanadoo.fr
F105: 104 | G105: COSTELLI Davide | H105: ENSP | I105: DAVIDECOSTELLI | J105: 40, rue d'HautpouI | K105: 75019 Paris | L105: Tel. :0610 92 97 31 | M105: dcosteIIi@gmaiI.com
F106: 105 | G106: COUSSERAN Alain | H106: /NH (ENIHP) | I106: GROUPE SIGNES | J106: 162, rue du faubourg Saint Denis | K106: 75010 Paris | L106: Tel. : 01 40 22 95 95 | M106: groupe@signes-paysages.fr
F107: 106 | G107: DAMEE olivier | H107: ENSP | I107: DAMEE VALLET & ASSOCIÉS SARL | J107: 12 et 12 bis, rue Melingue | K107: 75019 Paris | L107: Tel. : 01 42 06 38 60 | M107: d.v.a@dvapaysages.com
F108: 107 | G108: DARD Charles | H108: ENSP | I108: CHARLES DARD PAYSAGISTE | J108: 31, rue Henri Chevreau | K108: 75020 Paris | L108: Tel.:0146361115 | M108: charIes.dard@orange.fr
F109: 108 | G109: ALLEAUME Céline | H109: GEMBLOUX | I109: ARCHITECTE PAYSAGISTE | J109: 0 | K109: 78470 Saint Remy les Chevreuse | L109: 0 | M109: celinealleaume@outlook.fr
F110: 109 | G110: ARNOUX Maxime | H110: ENSP | I110: CONCEPTEUR DPLG | J110: 5, rue Armand Silvestre Appt 4 | K110: 92400 Courbevoie | L110: 0 | M110: 0
F111: 110 | G111: AUDOUY Michel | H111: ENSP | I111: MICHEL AUDOUY ARCHITECTE-PAYSAGISTE | J111: 14, rue Deparcieux | K111: 75014 Paris | L111: Tel. : 01 43 21 61 86 | M111: micheI.audouy@wanadoo.fr
F112: 111 | G112: BARNOUD Benoît | H112: ENSP | I112: ALTITUDE 35 | J112: 28, rue du Canal | K112: 93200 Saint Denis | L112: Tél. : 06 83 37 4612 | M112: benoit.barnoud@aItitude35.com
F113: 112 | G113: DE DREUZY Henri | H113: ENSP | I113: AGENCE BABYLONE | J113: 56, rue de Paradis | K113: 75010 Paris | L113: Tel. : 01 49 23 51 01 | M113: contact@agencebabyIone.com
F114: 113 | G114: DELBOY Sylvain | H114: ENSP | I114: SENSOMOTO Paysagistes | J114: 28, rue Danton | K114: 93310 Le Pre Saint Gervais | L114: Tel. : 09 53 34 08 00 | M114: ateIier@sensomoto.org
F115: 114 | G115: DEMACHY Alexandre | H115: ENSP | I115: AD PAYSAGISTE | J115: 20, avenue Paul Appell | K115: 75014 Paris | L115: Tel. : 06 61 90 43 30 | M115: adpaysagiste@free.fr
F116: 115 | G116: DESHAYES Yves | H116: ENSP | I116: 0 | J116: 20, rue de Neuilly | K116: 92110 Clichy | L116: Tel. : 01 47 31 21 57 | M116: 0
F117: 116 | G117: l=oLLÉA Bertrand | H117: ENSP | I117: AGENCE BERTRAND FOLLÉA -CLAIRE GAUTIER | J117: 100, avenue Henri Ginoux | K117: 92120 Montrouge | L117: Tel. : 01 47 35 71 33 | M117: agence@foIlea-gautier.com
F118: 117 | G118: BASSINET Grégoire | H118: 0 | I118: BASSINET TUROUIN PAYSAGE | J118: 56, rue du faubourg Poissonnière | K118: 75010 Paris | L118: Tél.:0142 2612 46 | M118: oontact@btpaysage.oom
F119: 118 | G119: BOUR Sophie | H119: ENSP | I119: D'AUTREPART | J119: 46, rue Andre Thome | K119: 78120 Sonchamp | L119: Tél. :0612 9188 49 | M119: sophie@dautrepart.fr
F120: 119 | G120: CHARLES - LE FRANC Daphné | H120: ENSP | I120: DAPHNÉ CHARLES - PAYSAGES SAS | J120: 15, rue Rougemont | K120: 75009 Paris | L120: Tel. : 09 52 510019 | M120: daphne.charIes@Wanadoo.fr
F121: 120 | G121: BAVA Henri | H121: ENSP | I121: AGENCE TER | J121: 18-20, rue du Faubourg du Temple | K121: 75011 Paris | L121: Tel.:014314 34 00 | M121: contact@agenceter.com
F122: 121 | G122: BIANCHI Marta | H122: ENSP | I122: BIANCHIMAJER - SERVICES D' ARCHITECTURE ET DE PAYSAGE | J122: 37, rue de la Grange aux Belles | K122: 75010 Paris | L122: Tél. : 01 42 45 00 76 | M122: oontact@bianohimajer.oom
F123: 122 | G123: BLUME Marc | H123: FE (Allemagne) | I123: ATELIER EEM | J123: 33, rue Ramponeau | K123: 75020 Paris | L123: Tel. : 01 75 51 33 24 | M123: m@ateIier-eem.org
F124: 123 | G124: BOUCHER Thomas | H124: ENSP | I124: PRAXYS | J124: 155, rue de Belleville | K124: 75019 Paris | L124: Tél.:0142 77 2613 | M124: administratif@praxys-paysage.fr
F125: 124 | G125: BRUNET Catherine | H125: ENSP | I125: CATHERINE BRUNET PAYSAGISTE | J125: 10 ter, rue Bisson | K125: 75020 Paris | L125: Tél.:O143 571615 | M125: o.brunet.paysagiste@free.fr
F126: 125 | G126: BRUTER Jonathan | H126: ENSAP Bx | I126: LANOD | J126: 8, rue Joseph Dijon | K126: 75018 Paris | L126: Tél. : 09 83 85 02 91 | M126: contact@Ianod.net
F127: 126 | G127: CATOIRE Marion | H127: ESAJ | I127: L'ARBRE À CAM AGENCE | J127: 49, avenue Maréchal Lattre de Tassigny | K127: 94600 Choisy le Roi | L127: Tél. : 09 51 33 60 59 | M127: Iarbreacam@gmaiI.com
F128: 127 | G128: CHAMBLAS Lydie | H128: Habilitée FFP | I128: M. A. P | J128: 25, rue Hebert | K128: 92140 Clamart | L128: Tél. : 06 09 81 30 37 | M128: lydie.chamblas@map-arohitectescom
F129: 128 | G129: CHARRIER Gwenaelle | H129: ENSP | I129: 1, cour des Oeillets | J129: 77600 Bussy Saint Georges | K129: Tel. : 06 4312 40 04 | L129: 0 | M129: 0
F130: 129 | G130: COTTET Vincent | H130: ENSP | I130: RICHEZ Assoc|És PAYSAGE | J130: 2, rue de la Roquette | K130: 75011 Paris | L130: Tel. : 01 43 38 22 55 | M130: maiI@riohezassooies.com
F131: 130 | G131: =INDIRECT("feuil1!b"&COLUMN(A:A)+(7*ROW(130:130)-7)) -> CHASTEL-ASSE Sabine | H131: =INDIRECT("feuil1!b"&COLUMN(B:B)+(7*ROW(130:130)-7)) -> ENSP | I131: =INDIRECT("feuil1!b"&COLUMN(C:C)+(7*ROW(130:130)-7)) -> ATELIER CONCEPTION PAYSAGE | J131: =INDIRECT("feuil1!b"&COLUMN(D:D)+(7*ROW(130:130)-7)) -> 30, rue des Salles | K131: =INDIRECT("feuil1!b"&COLUMN(E:E)+(7*ROW(130:130)-7)) -> 92400 Courbevoie | L131: =INDIRECT("feuil1!b"&COLUMN(F:F)+(7*ROW(130:130)-7)) -> Tel. : 01 47 68 83 53 | M131: =INDIRECT("feuil1!b"&COLUMN(G:G)+(7*ROW(130:130)-7)) -> atelierconceptionpaysage@orange.fr
F132: 131 | G132: COUSIN Romuald | H132: /NH (ENIHP) | I132: ENDROITS EN VERT | J132: 23, quai Alfred Sisley | K132: 92390 Villeneuve la Garenne | L132: Tél. : 01 46 85 87 81 | M132: r.cousin@endroitsenvert.fr
F133: 132 | G133: CLARAMUNT Marc | H133: ENSP | I133: ATELIER PHUSIS | J133: 26, rue des Trois Bornes | K133: 75011 Paris | L133: Tél. : 01 49 23 01 44 | M133: ateIierphusis@wanadoo.fr
F134: 133 | G134: COSTELLI Davide | H134: ENSP | I134: DAVIDECOSTELLI | J134: 40, rue d'HautpouI | K134: 75019 Paris | L134: Tel. :0610 92 97 31 | M134: dcosteIIi@gmaiI.com
F135: 134 | G135: COUSSERAN Alain | H135: /NH (ENIHP) | I135: GROUPE SIGNES | J135: 162, rue du faubourg Saint Denis | K135: 75010 Paris | L135: Tel. : 01 40 22 95 95 | M135: groupe@signes-paysages.fr
F136: 135 | G136: DAMEE olivier | H136: ENSP | I136: DAMEE VALLET & ASSOCIÉS SARL | J136: 12 et 12 bis, rue Melingue | K136: 75019 Paris | L136: Tel. : 01 42 06 38 60 | M136: d.v.a@dvapaysages.com
F137: 136 | G137: DARD Charles | H137: ENSP | I137: CHARLES DARD PAYSAGISTE | J137: 31, rue Henri Chevreau | K137: 75020 Paris | L137: Tel.:0146361115 | M137: charIes.dard@orange.fr
F138: 137 | G138: ALLEAUME Céline | H138: GEMBLOUX | I138: ARCHITECTE PAYSAGISTE | J138: 0 | K138: 78470 Saint Remy les Chevreuse | L138: 0 | M138: celinealleaume@outlook.fr
F139: 138 | G139: ARNOUX Maxime | H139: ENSP | I139: CONCEPTEUR DPLG | J139: 5, rue Armand Silvestre Appt 4 | K139: 92400 Courbevoie | L139: 0 | M139: 0
F140: 139 | G140: AUDOUY Michel | H140: ENSP | I140: MICHEL AUDOUY ARCHITECTE-PAYSAGISTE | J140: 14, rue Deparcieux | K140: 75014 Paris | L140: Tel. : 01 43 21 61 86 | M140: micheI.audouy@wanadoo.fr
F141: 140 | G141: BARNOUD Benoît | H141: ENSP | I141: ALTITUDE 35 | J141: 28, rue du Canal | K141: 93200 Saint Denis | L141: Tél. : 06 83 37 4612 | M141: benoit.barnoud@aItitude35.com
F142: 141 | G142: DE DREUZY Henri | H142: ENSP | I142: AGENCE BABYLONE | J142: 56, rue de Paradis | K142: 75010 Paris | L142: Tel. : 01 49 23 51 01 | M142: contact@agencebabyIone.com
F143: 142 | G143: DELBOY Sylvain | H143: ENSP | I143: SENSOMOTO Paysagistes | J143: 28, rue Danton | K143: 93310 Le Pre Saint Gervais | L143: Tel. : 09 53 34 08 00 | M143: ateIier@sensomoto.org
F144: 143 | G144: DEMACHY Alexandre | H144: ENSP | I144: AD PAYSAGISTE | J144: 20, avenue Paul Appell | K144: 75014 Paris | L144: Tel. : 06 61 90 43 30 | M144: adpaysagiste@free.fr
F145: 144 | G145: DESHAYES Yves | H145: ENSP | I145: 0 | J145: 20, rue de Neuilly | K145: 92110 Clichy | L145: Tel. : 01 47 31 21 57 | M145: 0
F146: 145 | G146: l=oLLÉA Bertrand | H146: ENSP | I146: AGENCE BERTRAND FOLLÉA -CLAIRE GAUTIER | J146: 100, avenue Henri Ginoux | K146: 92120 Montrouge | L146: Tel. : 01 47 35 71 33 | M146: agence@foIlea-gautier.com
F147: 146 | G147: BASSINET Grégoire | H147: 0 | I147: BASSINET TUROUIN PAYSAGE | J147: 56, rue du faubourg Poissonnière | K147: 75010 Paris | L147: Tél.:0142 2612 46 | M147: oontact@btpaysage.oom
F148: 147 | G148: BOUR Sophie | H148: ENSP | I148: D'AUTREPART | J148: 46, rue Andre Thome | K148: 78120 Sonchamp | L148: Tél. :0612 9188 49 | M148: sophie@dautrepart.fr
F149: 148 | G149: CHARLES - LE FRANC Daphné | H149: ENSP | I149: DAPHNÉ CHARLES - PAYSAGES SAS | J149: 15, rue Rougemont | K149: 75009 Paris | L149: Tel. : 09 52 510019 | M149: daphne.charIes@Wanadoo.fr
F150: 149 | G150: BAVA Henri | H150: ENSP | I150: AGENCE TER | J150: 18-20, rue du Faubourg du Temple | K150: 75011 Paris | L150: Tel.:014314 34 00 | M150: contact@agenceter.com
F151: 150 | G151: BIANCHI Marta | H151: ENSP | I151: BIANCHIMAJER - SERVICES D' ARCHITECTURE ET DE PAYSAGE | J151: 37, rue de la Grange aux Belles | K151: 75010 Paris | L151: Tél. : 01 42 45 00 76 | M151: oontact@bianohimajer.oom
F152: 151 | G152: BLUME Marc | H152: FE (Allemagne) | I152: ATELIER EEM | J152: 33, rue Ramponeau | K152: 75020 Paris | L152: Tel. : 01 75 51 33 24 | M152: m@ateIier-eem.org
F153: 152 | G153: BOUCHER Thomas | H153: ENSP | I153: PRAXYS | J153: 155, rue de Belleville | K153: 75019 Paris | L153: Tél.:0142 77 2613 | M153: administratif@praxys-paysage.fr
F154: 153 | G154: BRUNET Catherine | H154: ENSP | I154: CATHERINE BRUNET PAYSAGISTE | J154: 10 ter, rue Bisson | K154: 75020 Paris | L154: Tél.:O143 571615 | M154: o.brunet.paysagiste@free.fr
F155: 154 | G155: BRUTER Jonathan | H155: ENSAP Bx | I155: LANOD | J155: 8, rue Joseph Dijon | K155: 75018 Paris | L155: Tél. : 09 83 85 02 91 | M155: contact@Ianod.net
F156: 155 | G156: CATOIRE Marion | H156: ESAJ | I156: L'ARBRE À CAM AGENCE | J156: 49, avenue Maréchal Lattre de Tassigny | K156: 94600 Choisy le Roi | L156: Tél. : 09 51 33 60 59 | M156: Iarbreacam@gmaiI.com
F157: 156 | G157: CHAMBLAS Lydie | H157: Habilitée FFP | I157: M. A. P | J157: 25, rue Hebert | K157: 92140 Clamart | L157: Tél. : 06 09 81 30 37 | M157: lydie.chamblas@map-arohitectescom
F158: 157 | G158: CHARRIER Gwenaelle | H158: ENSP | I158: 1, cour des Oeillets | J158: 77600 Bussy Saint Georges | K158: Tel. : 06 4312 40 04 | L158: 0 | M158: 0
F159: 158 | G159: COTTET Vincent | H159: ENSP | I159: RICHEZ Assoc|És PAYSAGE | J159: 2, rue de la Roquette | K159: 75011 Paris | L159: Tel. : 01 43 38 22 55 | M159: maiI@riohezassooies.com
F160: 159 | G160: CHASTEL-ASSE Sabine | H160: ENSP | I160: ATELIER CONCEPTION PAYSAGE | J160: 30, rue des Salles | K160: 92400 Courbevoie | L160: Tel. : 01 47 68 83 53 | M160: atelierconceptionpaysage@orange.fr
F161: 160 | G161: COUSIN Romuald | H161: /NH (ENIHP) | I161: ENDROITS EN VERT | J161: 23, quai Alfred Sisley | K161: 92390 Villeneuve la Garenne | L161: Tél. : 01 46 85 87 81 | M161: r.cousin@endroitsenvert.fr
F162: 161 | G162: CLARAMUNT Marc | H162: ENSP | I162: ATELIER PHUSIS | J162: 26, rue des Trois Bornes | K162: 75011 Paris | L162: Tél. : 01 49 23 01 44 | M162: ateIierphusis@wanadoo.fr
F163: 162 | G163: COSTELLI Davide | H163: ENSP | I163: DAVIDECOSTELLI | J163: 40, rue d'HautpouI | K163: 75019 Paris | L163: Tel. :0610 92 97 31 | M163: dcosteIIi@gmaiI.com
F164: 163 | G164: COUSSERAN Alain | H164: /NH (ENIHP) | I164: GROUPE SIGNES | J164: 162, rue du faubourg Saint Denis | K164: 75010 Paris | L164: Tel. : 01 40 22 95 95 | M164: groupe@signes-paysages.fr
F165: 164 | G165: DAMEE olivier | H165: ENSP | I165: DAMEE VALLET & ASSOCIÉS SARL | J165: 12 et 12 bis, rue Melingue | K165: 75019 Paris | L165: Tel. : 01 42 06 38 60 | M165: d.v.a@dvapaysages.com
F166: 165 | G166: DARD Charles | H166: ENSP | I166: CHARLES DARD PAYSAGISTE | J166: 31, rue Henri Chevreau | K166: 75020 Paris | L166: Tel.:0146361115 | M166: charIes.dard@orange.fr
F167: 166 | G167: ALLEAUME Céline | H167: GEMBLOUX | I167: ARCHITECTE PAYSAGISTE | J167: 0 | K167: 78470 Saint Remy les Chevreuse | L167: 0 | M167: celinealleaume@outlook.fr
F168: 167 | G168: ARNOUX Maxime | H168: ENSP | I168: CONCEPTEUR DPLG | J168: 5, rue Armand Silvestre Appt 4 | K168: 92400 Courbevoie | L168: 0 | M168: 0
F169: 168 | G169: AUDOUY Michel | H169: ENSP | I169: MICHEL AUDOUY ARCHITECTE-PAYSAGISTE | J169: 14, rue Deparcieux | K169: 75014 Paris | L169: Tel. : 01 43 21 61 86 | M169: micheI.audouy@wanadoo.fr
F170: 169 | G170: BARNOUD Benoît | H170: ENSP | I170: ALTITUDE 35 | J170: 28, rue du Canal | K170: 93200 Saint Denis | L170: Tél. : 06 83 37 4612 | M170: benoit.barnoud@aItitude35.com
F171: 170 | G171: DE DREUZY Henri | H171: ENSP | I171: AGENCE BABYLONE | J171: 56, rue de Paradis | K171: 75010 Paris | L171: Tel. : 01 49 23 51 01 | M171: contact@agencebabyIone.com
F172: 171 | G172: DELBOY Sylvain | H172: ENSP | I172: SENSOMOTO Paysagistes | J172: 28, rue Danton | K172: 93310 Le Pre Saint Gervais | L172: Tel. : 09 53 34 08 00 | M172: ateIier@sensomoto.org
F173: 172 | G173: DEMACHY Alexandre | H173: ENSP | I173: AD PAYSAGISTE | J173: 20, avenue Paul Appell | K173: 75014 Paris | L173: Tel. : 06 61 90 43 30 | M173: adpaysagiste@free.fr
F174: 173 | G174: DESHAYES Yves | H174: ENSP | I174: 0 | J174: 20, rue de Neuilly | K174: 92110 Clichy | L174: Tel. : 01 47 31 21 57 | M174: 0
F175: 174 | G175: l=oLLÉA Bertrand | H175: ENSP | I175: AGENCE BERTRAND FOLLÉA -CLAIRE GAUTIER | J175: 100, avenue Henri Ginoux | K175: 92120 Montrouge | L175: Tel. : 01 47 35 71 33 | M175: agence@foIlea-gautier.com
F176: 175 | G176: BASSINET Grégoire | H176: 0 | I176: BASSINET TUROUIN PAYSAGE | J176: 56, rue du faubourg Poissonnière | K176: 75010 Paris | L176: Tél.:0142 2612 46 | M176: oontact@btpaysage.oom
F177: 176 | G177: BOUR Sophie | H177: ENSP | I177: D'AUTREPART | J177: 46, rue Andre Thome | K177: 78120 Sonchamp | L177: Tél. :0612 9188 49 | M177: sophie@dautrepart.fr
F178: 177 | G178: CHARLES - LE FRANC Daphné | H178: ENSP | I178: DAPHNÉ CHARLES - PAYSAGES SAS | J178: 15, rue Rougemont | K178: 75009 Paris | L178: Tel. : 09 52 510019 | M178: daphne.charIes@Wanadoo.fr
F179: 178 | G179: BAVA Henri | H179: ENSP | I179: AGENCE TER | J179: 18-20, rue du Faubourg du Temple | K179: 75011 Paris | L179: Tel.:014314 34 00 | M179: contact@agenceter.com
F180: 179 | G180: BIANCHI Marta | H180: ENSP | I180: BIANCHIMAJER - SERVICES D' ARCHITECTURE ET DE PAYSAGE | J180: 37, rue de la Grange aux Belles | K180: 75010 Paris | L180: Tél. : 01 42 45 00 76 | M180: oontact@bianohimajer.oom
F181: 180 | G181: BLUME Marc | H181: FE (Allemagne) | I181: ATELIER EEM | J181: 33, rue Ramponeau | K181: 75020 Paris | L181: Tel. : 01 75 51 33 24 | M181: m@ateIier-eem.org
F182: 181 | G182: BOUCHER Thomas | H182: ENSP | I182: PRAXYS | J182: 155, rue de Belleville | K182: 75019 Paris | L182: Tél.:0142 77 2613 | M182: administratif@praxys-paysage.fr
F183: 182 | G183: BRUNET Catherine | H183: ENSP | I183: CATHERINE BRUNET PAYSAGISTE | J183: 10 ter, rue Bisson | K183: 75020 Paris | L183: Tél.:O143 571615 | M183: o.brunet.paysagiste@free.fr
F184: 183 | G184: BRUTER Jonathan | H184: ENSAP Bx | I184: LANOD | J184: 8, rue Joseph Dijon | K184: 75018 Paris | L184: Tél. : 09 83 85 02 91 | M184: contact@Ianod.net
F185: 184 | G185: CATOIRE Marion | H185: ESAJ | I185: L'ARBRE À CAM AGENCE | J185: 49, avenue Maréchal Lattre de Tassigny | K185: 94600 Choisy le Roi | L185: Tél. : 09 51 33 60 59 | M185: Iarbreacam@gmaiI.com
F186: 185 | G186: CHAMBLAS Lydie | H186: Habilitée FFP | I186: M. A. P | J186: 25, rue Hebert | K186: 92140 Clamart | L186: Tél. : 06 09 81 30 37 | M186: lydie.chamblas@map-arohitectescom
F187: 186 | G187: CHARRIER Gwenaelle | H187: ENSP | I187: 1, cour des Oeillets | J187: 77600 Bussy Saint Georges | K187: Tel. : 06 4312 40 04 | L187: 0 | M187: 0
F188: 187 | G188: COTTET Vincent | H188: ENSP | I188: RICHEZ Assoc|És PAYSAGE | J188: 2, rue de la Roquette | K188: 75011 Paris | L188: Tel. : 01 43 38 22 55 | M188: maiI@riohezassooies.com
F189: 188 | G189: CHASTEL-ASSE Sabine | H189: ENSP | I189: ATELIER CONCEPTION PAYSAGE | J189: 30, rue des Salles | K189: 92400 Courbevoie | L189: Tel. : 01 47 68 83 53 | M189: atelierconceptionpaysage@orange.fr
F190: 189 | G190: COUSIN Romuald | H190: /NH (ENIHP) | I190: ENDROITS EN VERT | J190: 23, quai Alfred Sisley | K190: 92390 Villeneuve la Garenne | L190: Tél. : 01 46 85 87 81 | M190: r.cousin@endroitsenvert.fr
F191: 190 | G191: CLARAMUNT Marc | H191: ENSP | I191: ATELIER PHUSIS | J191: 26, rue des Trois Bornes | K191: 75011 Paris | L191: Tél. : 01 49 23 01 44 | M191: ateIierphusis@wanadoo.fr
F192: 191 | G192: COSTELLI Davide | H192: ENSP | I192: DAVIDECOSTELLI | J192: 40, rue d'HautpouI | K192: 75019 Paris | L192: Tel. :0610 92 97 31 | M192: dcosteIIi@gmaiI.com
F193: 192 | G193: COUSSERAN Alain | H193: /NH (ENIHP) | I193: GROUPE SIGNES | J193: 162, rue du faubourg Saint Denis | K193: 75010 Paris | L193: Tel. : 01 40 22 95 95 | M193: groupe@signes-paysages.fr
F194: 193 | G194: DAMEE olivier | H194: ENSP | I194: DAMEE VALLET & ASSOCIÉS SARL | J194: 12 et 12 bis, rue Melingue | K194: 75019 Paris | L194: Tel. : 01 42 06 38 60 | M194: d.v.a@dvapaysages.com
F195: 194 | G195: =INDIRECT("feuil1!b"&COLUMN(A:A)+(7*ROW(194:194)-7)) -> DARD Charles | H195: =INDIRECT("feuil1!b"&COLUMN(B:B)+(7*ROW(194:194)-7)) -> ENSP | I195: =INDIRECT("feuil1!b"&COLUMN(C:C)+(7*ROW(194:194)-7)) -> CHARLES DARD PAYSAGISTE | J195: =INDIRECT("feuil1!b"&COLUMN(D:D)+(7*ROW(194:194)-7)) -> 31, rue Henri Chevreau | K195: =INDIRECT("feuil1!b"&COLUMN(E:E)+(7*ROW(194:194)-7)) -> 75020 Paris | L195: =INDIRECT("feuil1!b"&COLUMN(F:F)+(7*ROW(194:194)-7)) -> Tel.:0146361115 | M195: =INDIRECT("feuil1!b"&COLUMN(G:G)+(7*ROW(194:194)-7)) -> charIes.dard@orange.fr
F196: 195 | G196: ALLEAUME Céline | H196: GEMBLOUX | I196: ARCHITECTE PAYSAGISTE | J196: 0 | K196: 78470 Saint Remy les Chevreuse | L196: 0 | M196: celinealleaume@outlook.fr
F197: 196 | G197: ARNOUX Maxime | H197: ENSP | I197: CONCEPTEUR DPLG | J197: 5, rue Armand Silvestre Appt 4 | K197: 92400 Courbevoie | L197: 0 | M197: 0
F198: 197 | G198: AUDOUY Michel | H198: ENSP | I198: MICHEL AUDOUY ARCHITECTE-PAYSAGISTE | J198: 14, rue Deparcieux | K198: 75014 Paris | L198: Tel. : 01 43 21 61 86 | M198: micheI.audouy@wanadoo.fr
F199: 198 | G199: BARNOUD Benoît | H199: ENSP | I199: ALTITUDE 35 | J199: 28, rue du Canal | K199: 93200 Saint Denis | L199: Tél. : 06 83 37 4612 | M199: benoit.barnoud@aItitude35.com
F200: 199 | G200: DE DREUZY Henri | H200: ENSP | I200: AGENCE BABYLONE | J200: 56, rue de Paradis | K200: 75010 Paris | L200: Tel. : 01 49 23 51 01 | M200: contact@agencebabyIone.com
... 2340 more rows
